Workbook

Sheet 1. Info
AB1: Alectra Utilities Corporation - Enersource Hydro
AB2: Alectra Utilities Corporation - Horizon Utilities
AB3: Alectra Utilities Corporation - Hydro One Brampton
AB4: Alectra Utilities Corporation - PowerStream Inc.
AB5: Algoma Power Inc.
AB6: Atikokan Hydro Inc.
AB7: Attawapiskat Power Corp.
AB8: Bluewater Power Distribution Corporation
AB9: Brantford Power Inc.
AB10: Burlington Hydro Inc.
AB11: Canadian Niagara Power Inc.
AB12: Centre Wellington Hydro Ltd.
A13: Drop-down lists are shaded blue; Input cells are shaded green. | AB13: Chapleau Public Utilities Corporation
AB14: Clinton Power Corporation
C15: Utility Name | D15: Hydro Ottawa Limited | AB15: COLLUS PowerStream Corporation
AB16: Cooperative Hydro Embrun Inc.
C17: Service Territory | D17: Ottawa, ON | AB17: E.L.K. Energy Inc.
AB18: Energy + Inc.
C19: Assigned EB Number | D19: EB-2017-0052 | AB19: Entegrus Powerlines Inc.
AB20: ENWIN Utilities Ltd.
C21: Name and Title | D21: Aprile Barrie, Manager, Rates & Revenue | AB21: Erie Thames Powerlines Corporation
AB22: Espanola Regional Hydro Distribution Corporation
C23: Phone Number | D23: 613-738-5499, ext 2106 | AB23: Essex Powerlines Corporation
AB24: Festival Hydro Inc.
C25: Email Address | D25: RegulatoryAffairs@HydroOttawa.com | AB25: Fort Albany Power Corporation
AB26: Fort Frances Power Corporation
C27: Date | D27: Original | AB27: Greater Sudbury Hydro Inc.
AB28: Grimsby Power Inc.
C29: Last COS Re-based Year | D29: 2016 | AB29: Guelph Hydro Electric Systems Inc.
AB30: Halton Hills Hydro Inc.
AB31: Hearst Power Distribution Company Limited
AB32: Hydro 2000 Inc.
AB33: Hydro Hawkesbury Inc.
AB34: Hydro One Networks Inc.
AB35: Hydro One Networks Inc. - Haldimand County Hydro
AB36: Hydro One Networks Inc. - Norfolk Hydro
AB37: Hydro One Networks Inc. - Woodstock Hydro
AB38: Hydro One Remote Communities Inc.
AB39: Hydro Ottawa Limited
AB40: Innpower Corporation
AB41: Kashechewan Power Corporation
AB42: Kenora Hydro Electric Corporation Ltd.
AB43: Kingston Hydro Corporation
AB44: Kitchener-Wilmot Hydro Inc.
AB45: Lakefront Utilities Inc.
AB46: Lakeland Power Distribution Ltd.
AB47: London Hydro Inc.
AB48: Midland Power Utility Corporation
AB49: Milton Hydro Distribution inc.
AB50: Newmarket - Tay Power Distribution Ltd.
AB51: Niagara Peninsula Energy Inc.
AB52: Niagara-on-the-Lake Hydro Inc.
AB53: North Bay Hydro Distribution Limited
AB54: Northern Ontario Wires Inc.
AB55: Oakville Hydro Electricity Distribution Inc.
AB56: Orangeville Hydro Limited
AB57: Orillia Power Distribution Corporation
AB58: Oshawa PUC Networks Inc.
AB59: Ottawa River Power Corporation
AB60: Peterborough Distribution Incorporated
AB61: PUC Distribution Inc.
AB62: Renfrew Hydro Inc.
AB63: Rideau St. Lawrence Distribution Inc.
AB64: Sioux Lookout Hydro Inc.
AB65: St. Thomas Energy Inc.
AB66: Thunder Bay Hydro Electricity Distribution Inc.
AB67: Tillsonburg Hydro Inc.
AB68: Toronto Hydro-Electric System Limited
AB69: Veridian Connections Inc.
AB70: Wasaga Distribution Inc.
AB71: Waterloo North Hydro Inc.
AB72: Welland Hydro Electric System Corp.
AB73: Wellington North Power Inc.
AB74: West Coast Huron Energy Inc.
AB75: Westario Power Inc.
AB76: Whitby Hydro Electric Corporation

Sheet 2. Table of Contents
D20: 1. Info | I20: 6. Historical Wholesale
D22: 2. Table of Contents | I22: 7. Current Wholesale
D24: 3. Rate Classes | I24: 8. Forecast Wholesale
D26: 4. RRR Data | I26: 9. RTSR Rates to Forecast
D28: 5. UTRs and Sub-Transmission

Sheet 3. Rate Classes
C13: 1. Select the appropriate rate classes that appear on your most recent Board-Approved Tariff of Rates and Charges. 2. Enter the RTS Network and Connection Rate as it appears on the Tariff of Rates and Charges
C15: Rate Class | E15: Unit | G15: RTSR-Network | I15: RTSR-Connection
C17: Residential | E17: kWh | G17: 0.0074 | I17: 0.0047 | L17: =IF(OR(ISBLANK(C17), ISERROR(FIND("Choose", C17))=FALSE), 0, 1) -> 1 | M17: ="C" & ROW(C17) -> C17 | N17: =IF(OR(C17="General Service Intermediate Rate Class 1,000 To 4,999 kW (formerly General Service > 50 kW Customers)", C17="General Service Intermediate Rate Class 1,000 To 4,999 kW (formerly Large Use Customers)"), "x", "") ->  | W17: Choose Rate Class
C18: General Service Less Than 50 kW | E18: kWh | G18: 0.0068 | I18: 0.0045 | L18: 1 | M18: C18 | N18: =IF(OR(C18="General Service Intermediate Rate Class 1,000 To 4,999 kW (formerly General Service > 50 kW Customers)", C18="General Service Intermediate Rate Class 1,000 To 4,999 kW (formerly Large Use Customers)"), "x", "") ->  | W18: Residential
C19: General Service 50 to 1,499 kW | E19: kW | G19: 2.8016 | I19: 1.8174 | L19: 1 | M19: C19 | W19: Residential Regular
C20: General Service 1,500 to 4,999 kW | E20: kW | G20: 2.9089 | I20: 1.9423 | L20: 1 | M20: C20 | W20: Residential Urban
C21: Large Use > 5000 kW | E21: kW | G21: 3.2246 | I21: 2.1873 | L21: 1 | M21: C21 | W21: Residential Urban Year-Round
C22: Unmetered Scattered Load | E22: kWh | G22: 0.0068 | I22: 0.0045 | L22: 1 | M22: C22 | W22: Residential Suburban
C23: Sentinel Lighting | E23: kW | G23: 2.0681 | I23: 1.3501 | L23: 1 | M23: C23 | W23: Residential Suburban Seasonal
C24: Street Lighting | E24: kW | G24: 2.0786 | I24: 1.3783 | L24: 1 | M24: C24 | W24: Residential Suburban Year Round
C25: Choose Rate Class | L25: 0 | M25: C25 | W25: Residential - Time of Use
C26: Choose Rate Class | L26: 0 | M26: C26 | W26: Residential - Hensall
C27: Choose Rate Class | L27: 0 | M27: C27 | W27: Residential – High Density [R1]
C28: Choose Rate Class | L28: 0 | M28: C28 | W28: Residential – Normal Density [R2]
C29: Choose Rate Class | L29: 0 | M29: C29 | W29: Seasonal Residential – High Density [R3]
C30: Choose Rate Class | L30: 0 | M30: C30 | W30: Seasonal Residential – Normal Density [R4]
C31: Choose Rate Class | L31: 0 | M31: C31 | W31: Residential – Urban [UR]
C32: Choose Rate Class | L32: 0 | M32: C32 | W32: General Service Less Than 50 kW
C33: Choose Rate Class | L33: 0 | M33: C33 | W33: General Service Less Than 50 kW – Single Phase energy-billed [G1]
C34: Choose Rate Class | L34: 0 | M34: C34 | W34: General Service Less Than 50 kW – Three Phase energy-billed [G3]
C35: Choose Rate Class | L35: 0 | M35: C35 | W35: General Service Less Than 50 kW – Transmission Class energy-billed [T]
C36: Choose Rate Class | L36: 0 | M36: C36 | W36: General Service Less Than 50 kW – Urban energy-billed [UG]
C37: Choose Rate Class | L37: 0 | M37: C37 | W37: Westport Sewage Treatment Plant
C38: Choose Rate Class | L38: 0 | M38: C38 | W38: Small Commercial and USL - per meter
N39: =COUNTIF(N17:N38, "x") -> 0 | W39: Small Commercial and USL - per connection
W40: Farms – Single Phase energy-billed [F1]
W41: General Service 50 to 499 kW
W42: General Service 50 to 699 kW
W43: General Service 50 to 999 kW
W44: General Service 50 to 999 kW - Interval Metered
W45: General Service 50 to 1,000 kW
W46: General Service 50 to 1,000 kW - Interval Meters
W47: General Service 50 to 1,000 kW - Non Interval Meters
W48: General Service 50 to 1,499 kW
W49: General Service 50 to 1,499 kW - Interval Metered
W50: General Service 50 to 2,499 kW
W51: General Service 50 to 2,999 kW
W52: General Service 50 to 2,999 kW - Time of Use
W53: General Service 50 to 4,999 kW
W54: General Service 50 to 4,999 kW – Interval Metered
W55: General Service 50 to 4,999 kW - Time of Use
W56: General Service 50 to 4,999 kW (CoGeneration)
W57: General Service 50 to 4,999 kW (formerly Time of Use)
W58: General Service 500 to 4,999 kW
W59: General Service 700 to 4,999 kW
W60: General Service 1,000 to 2,999 kW
W61: General Service 1,000 to 4,999 kW
W62: General Service 1,000 to 4,999 kW - Interval Meters
W63: General Service 1,000 To 4,999 kW (co-generation)
W64: General Service Greater Than 1,000 kW
W65: General Service Intermediate Rate Class 1,000 To 4,999 kW (formerly Large Use Customers)
W66: General Service Intermediate Rate Class 1,000 To 4,999 kW (formerly General Service > 50 kW Customers)
W67: General Service 1,500 to 4,999 kW
W68: General Service Equal To Or Greater Than 1,500 kW
W69: General Service Equal To Or Greater Than 1,500 kW - Interval Metered
W70: General Service Intermediate 1,000 To 4,999 kW
W71: General Service 2,500 to 4,999 kW
W72: General Service 3,000 to 4,999 kW
W73: General Service 3,000 to 4,999 kW - Interval Metered
W74: General Service 3,000 to 4,999 kW - Intermediate Use
W75: General Service 3,000 to 4,999 kW - Time of Use
W76: Intermediate With Self Generation
W77: General Service - Commercial
W78: General Service - Institutional
W79: Farms – Three Phase energy-billed [F3]
W80: Large Use
W81: Large Use - Regular
W82: Large Use > 5000 kW
W83: Large Use - 3TS
W84: Large Use - Ford Annex
W85: Unmetered Scattered Load
W86: Sentinel Lighting
W87: Street Lighting
W88: Embedded Distributor
W89: Low Voltage Wheeling Charge Rate
W90: Stand-By
W91: Standby Power
W92: Standby Power – INTERIM APPROVAL
W93: Standby Power - APPROVED ON AN INTERIM BASIS
W94: Standby - General Service 50 - 1,000 kW
W95: Standby Power General Service 50 to 1,499 kW
W96: Standby - General Service 1,000 - 5,000 kW
W97: Standby Power General Service 1,500 to 4,999 kW
W98: Standby - Large Use
W99: Standby Power General Service Large Use
W100: Standby Distribution Service

Sheet 4. RRR Data
B15: Rate Class | C15: Rate Description | D15: Unit | E15: Rate | F15: Non-Loss Adjusted Metered kWh | G15: Non-Loss Adjusted Metered kW | H15: Applicable Loss Factor eg: (1.0325) | I15: Loss Adjusted Billed kWh
B17: Residential | C17: RTSR - Network | D17: kWh | E17: 0.0074 | F17: 2260335626 | H17: 1.0335 | I17: =F17*H17 -> 2336056869
B18: Residential | C18: RTSR - Connection | D18: kWh | E18: 0.0047 | F18: 2260335626 | H18: 1.0335 | I18: =F18*H18 -> 2336056869
B19: General Service Less Than 50 kW | C19: RTSR - Network | D19: kWh | E19: 0.0068 | F19: 733311565 | H19: 1.0335 | I19: =F19*H19 -> 757877502.4
B20: General Service Less Than 50 kW | C20: RTSR - Connection | D20: kWh | E20: 0.0045 | F20: 733311565 | H20: 1.0335 | I20: =F20*H20 -> 757877502.4
B21: General Service 50 to 1,499 kW | C21: RTSR - Network | D21: kW | E21: 2.8016 | F21: 2958900805 | G21: 7075314
B22: General Service 50 to 1,499 kW | C22: RTSR - Connection | D22: kW | E22: 1.8174 | F22: 2958900805 | G22: 7075314
B23: General Service 1,500 to 4,999 kW | C23: RTSR - Network | D23: kW | E23: 2.9089 | F23: 805583761 | G23: 1726981
B24: General Service 1,500 to 4,999 kW | C24: RTSR - Connection | D24: kW | E24: 1.9423 | F24: 805583761 | G24: 1726981
B25: Large Use > 5000 kW | C25: RTSR - Network | D25: kW | E25: 3.2246 | F25: 588872536 | G25: 1071626
B26: Large Use > 5000 kW | C26: RTSR - Connection | D26: kW | E26: 2.1873 | F26: 588872536 | G26: 1071626
B27: Unmetered Scattered Load | C27: RTSR - Network | D27: kWh | E27: 0.0068 | F27: 15659015 | H27: 1.0335 | I27: =F27*H27 -> 16183592
B28: Unmetered Scattered Load | C28: RTSR - Connection | D28: kWh | E28: 0.0045 | F28: 15659015 | H28: 1.0335 | I28: =F28*H28 -> 16183592
B29: Sentinel Lighting | C29: RTSR - Network | D29: kW | E29: 2.0681 | F29: 48064 | G29: 134
B30: Sentinel Lighting | C30: RTSR - Connection | D30: kW | E30: 1.3501 | F30: 48064 | G30: 134
B31: Street Lighting | C31: RTSR - Network | D31: kW | E31: 2.0786 | F31: 45206290 | G31: 125463
B32: Street Lighting | C32: RTSR - Connection | D32: kW | E32: 1.3783 | F32: 45206290 | G32: 125463

Sheet 5. UTRs and Sub-Transmission
B18: Uniform Transmission Rates | C18: Unit | E18: 2016 | H18: 2017 | J18: 2018
B20: Rate Description | E20: Rate | H20: Rate | J20: Rate
B22: Network Service Rate | C22: kW | E22: 3.66 | H22: 3.66 | J22: 3.66
B24: Line Connection Service Rate | C24: kW | E24: 0.87 | H24: 0.87 | J24: 0.87
B26: Transformation Connection Service Rate | C26: kW | E26: 2.02 | H26: 2.02 | J26: 2.02
B29: Hydro One Sub-Transmission Rates | C29: Unit | E29: 2016 | H29: 2017 | J29: 2018
E30: Jan 2016 | F30: Feb - Dec 2016
B34: Rate Description | E34: Rate | H34: Rate | J34: Rate
B36: Network Service Rate | C36: kW | E36: 3.4121 | F36: 3.3396 | H36: 3.1942 | J36: 3.1942
B38: Line Connection Service Rate | C38: kW | E38: 0.7879 | F38: 0.7791 | H38: 0.771 | J38: 0.771
B40: Transformation Connection Service Rate | C40: kW | E40: 1.8018 | F40: 1.7713 | H40: 1.7493 | J40: 1.7493
B42: Both Line and Transformation Connection Service Rate | C42: kW | E42: =E40+E38 -> 2.5897 | F42: =SUM(F40,F38) -> 2.5504 | H42: =SUM(H40,H38) -> 2.5203 | J42: =SUM(J40,J38) -> 2.5203
B45: If needed, add extra host here. (I) | C45: Unit | E45: 2016 | H45: 2017 | J45: 2018
B49: Rate Description | E49: Rate | H49: Rate | J49: Rate
B51: Network Service Rate | C51: kW
B53: Line Connection Service Rate | C53: kW
B55: Transformation Connection Service Rate | C55: kW
B57: Both Line and Transformation Connection Service Rate | C57: kW | E57: =SUM(E53,E55) -> 0 | H57: =SUM(H53,H55) -> 0 | J57: =J55+J53 -> 0
B60: If needed, add extra host here. (II) | C60: Unit | E60: Effective January 1, 2016 | H60: Effective January 1, 2017 | J60: Effective January 1, 2018
B64: Rate Description | E64: Rate | H64: Rate | J64: Rate
B66: Network Service Rate | C66: kW
B68: Line Connection Service Rate | C68: kW
B70: Transformation Connection Service Rate | C70: kW
B72: Both Line and Transformation Connection Service Rate | C72: kW | E72: =SUM(E68,E70) -> 0 | H72: =SUM(H68,H70) -> 0 | J72: =J70+J68 -> 0
E74: Historical 2016 | H74: Current 2017 | J74: Forecast 2018
B75: Low Voltage Switchgear Credit (if applicable, enter as a negative value) | C75: $

Sheet 6. Historical Wholesale
B21: IESO | D21: Network | H21: Line Connection | L21: Transformation Connection | P21: Total Line
B22: Month | D22: Units Billed | E22: Rate | F22: Amount | H22: Units Billed | I22: Rate | J22: Amount | L22: Units Billed | M22: Rate | N22: Amount | P22: Amount
B24: January | D24: 1110525 | E24: 3.66 | F24: 4064522 | H24: 1106094 | I24: 0.87 | J24: 962302 | L24: 857995 | M24: 2.02 | N24: 1733150 | P24: =J24+N24 -> 2695452
B25: February | D25: 1109379 | E25: 3.66 | F25: 4060327 | H25: 1124912 | I25: 0.87 | J25: 978673 | L25: 863642 | M25: 2.02 | N25: 1744557 | P25: 2723230
B26: March | D26: 1055936 | E26: 3.66 | F26: 3864726 | H26: 1054578 | I26: 0.87 | J26: 917483 | L26: 789894 | M26: 2.02 | N26: 1595586 | P26: 2513069
B27: April | D27: 960122 | E27: 3.66 | F27: 3514047 | H27: 960667 | I27: 0.87 | J27: 835780 | L27: 738832 | M27: 2.02 | N27: 1492441 | P27: 2328221
B28: May | D28: 1202297 | E28: 3.66 | F28: 4400407 | H28: 1186974 | I28: 0.87 | J28: 1032667 | L28: 920214 | M28: 2.02 | N28: 1858832 | P28: 2891499
B29: June | D29: 1303928 | E29: 3.66 | F29: 4772376 | H29: 1272908 | I29: 0.87 | J29: 1107430 | L29: 918915 | M29: 2.02 | N29: 1856208 | P29: 2963638
B30: July | D30: 1289467 | E30: 3.66 | F30: 4719449 | H30: 1278103 | I30: 0.87 | J30: 1111950 | L30: 940665 | M30: 2.02 | N30: 1900143 | P30: 3012093
B31: August | D31: 1304729 | E31: 3.66 | F31: 4775308 | H31: 1281137 | I31: 0.87 | J31: 1114589 | L31: 955106 | M31: 2.02 | N31: 1929314 | P31: 3043903
B32: September | D32: 1164483 | E32: 3.66 | F32: 4262008 | H32: 1142370 | I32: 0.87 | J32: 993862 | L32: 871454 | M32: 2.02 | N32: 1760337 | P32: 2754199
B33: October | D33: 1002561 | E33: 3.66 | F33: 3669373 | H33: 996935 | I33: 0.87 | J33: 867333 | L33: 771349 | M33: 2.02 | N33: 1558125 | P33: 2425458
B34: November | D34: 1018562 | E34: 3.66 | F34: 3727937 | H34: 1005146 | I34: 0.87 | J34: 874477 | L34: 778381 | M34: 2.02 | N34: 1572330 | P34: 2446807
B35: December | D35: 1168480 | E35: 3.66 | F35: 4276637 | H35: 1119911 | I35: 0.87 | J35: 974323 | L35: 890313 | M35: 2.02 | N35: 1798432 | P35: 2772755
B37: Total | D37: =SUM(D24:D35) -> 13690469 | E37: =IF(D37<>0,F37/D37,0) -> 3.660000034 | F37: =SUM(F24:F35) -> 50107117 | H37: =SUM(H24:H35) -> 13529735 | I37: =IF(H37<>0,J37/H37,0) -> 0.8699999667 | J37: =SUM(J24:J35) -> 11770869 | L37: =SUM(L24:L35) -> 10296760 | M37: =IF(L37<>0,N37/L37,0) -> 2.019999981 | N37: =SUM(N24:N35) -> 20799455 | P37: =SUM(P24:P35) -> 32570324
B39: Hydro One | D39: Network | H39: Line Connection | L39: Transformation Connection | P39: Total Line
B41: Month | D41: Units Billed | E41: Rate | F41: Amount | H41: Units Billed | I41: Rate | J41: Amount | L41: Units Billed | M41: Rate | N41: Amount | P41: Amount
B43: January | D43: 62804 | E43: 3.41 | F43: 214292 | H43: 4061 | I43: 0.79 | J43: 3200 | L43: 62050 | M43: 1.8 | N43: 111802 | P43: =J43+N43 -> 115002
B44: February | D44: 60023 | E44: 3.34 | F44: 200453 | H44: 4546 | I44: 0.78 | J44: 3541 | L44: 64598 | M44: 1.77 | N44: 114422 | P44: 117963
B45: March | D45: 57561 | E45: 3.34 | F45: 192230 | H45: 4150 | I45: 0.78 | J45: 3233 | L45: 57011 | M45: 1.77 | N45: 100983 | P45: 104216
B46: April | D46: 49453 | E46: 3.34 | F46: 165153 | H46: 3751 | I46: 0.78 | J46: 2923 | L46: 50042 | M46: 1.77 | N46: 88640 | P46: 91563
B47: May | D47: 40369 | E47: 3.34 | F47: 134816 | H47: 3778 | I47: 0.78 | J47: 2944 | L47: 42465 | M47: 1.77 | N47: 75218 | P47: 78162
B48: June | D48: 45442 | E48: 3.34 | F48: 151757 | H48: 3989 | I48: 0.78 | J48: 3107 | L48: 44755 | M48: 1.77 | N48: 79275 | P48: 82382
B49: July | D49: 46395 | E49: 3.34 | F49: 154939 | H49: 3917 | I49: 0.78 | J49: 3052 | L49: 45676 | M49: 1.77 | N49: 80906 | P49: 83958
B50: August | D50: 49384 | E50: 3.34 | F50: 164923 | H50: 4090 | I50: 0.78 | J50: 3186 | L50: 48734 | M50: 1.77 | N50: 86322 | P50: 89508
B51: September | D51: 45364 | E51: 3.34 | F51: 151497 | H51: 3534 | I51: 0.78 | J51: 2754 | L51: 44820 | M51: 1.77 | N51: 79390 | P51: 82144
B52: October | D52: 36287 | E52: 3.34 | F52: 121186 | H52: 630 | I52: 0.78 | J52: 491 | L52: 36958 | M52: 1.77 | N52: 65465 | P52: 65956
B53: November | D53: 40651 | E53: 3.34 | F53: 135759 | H53: 676 | I53: 0.78 | J53: 527 | L53: 41190 | M53: 1.77 | N53: 72959 | P53: 73486
B54: December | D54: 42027 | E54: 3.34 | F54: 140352 | H54: 4196 | I54: 0.78 | J54: 3269 | L54: 42616 | M54: 1.77 | N54: 75486 | P54: 78755
B56: Total | D56: =SUM(D43:D54) -> 575760 | E56: =IF(D56<>0,F56/D56,0) -> 3.347500695 | F56: =SUM(F43:F54) -> 1927357 | H56: =SUM(H43:H54) -> 41318 | I56: =IF(H56<>0,J56/H56,0) -> 0.7799748294 | J56: =SUM(J43:J54) -> 32227 | L56: =SUM(L43:L54) -> 580915 | M56: =IF(L56<>0,N56/L56,0) -> 1.774559101 | N56: =SUM(N43:N54) -> 1030868 | P56: =SUM(P43:P54) -> 1063095
B58: Add Extra Host Here (I) | D58: Network | H58: Line Connection | L58: Transformation Connection | P58: Total Line
B59: (if needed)
B60: Month | D60: Units Billed | E60: Rate | F60: Amount | H60: Units Billed | I60: Rate | J60: Amount | L60: Units Billed | M60: Rate | N60: Amount | P60: Amount
B62: January | E62: =IF(D62<>0,F62/D62,0) -> 0 | I62: =IF(H62<>0,J62/H62,0) -> 0 | M62: =IF(L62<>0,N62/L62,0) -> 0 | P62: =J62+N62 -> 0
B63: February | E63: 0 | I63: 0 | M63: 0 | P63: 0
B64: March | E64: 0 | I64: 0 | M64: 0 | P64: 0
B65: April | E65: 0 | I65: 0 | M65: 0 | P65: 0
B66: May | E66: 0 | I66: 0 | M66: 0 | P66: 0
B67: June | E67: 0 | I67: 0 | M67: 0 | P67: 0
B68: July | E68: 0 | I68: 0 | M68: 0 | P68: 0
B69: August | E69: 0 | I69: 0 | M69: 0 | P69: 0
B70: September | E70: 0 | I70: 0 | M70: 0 | P70: 0
B71: October | E71: 0 | I71: 0 | M71: 0 | P71: 0
B72: November | E72: 0 | I72: 0 | M72: 0 | P72: 0
B73: December | E73: 0 | I73: 0 | M73: 0 | P73: 0
B75: Total | D75: =SUM(D62:D73) -> 0 | E75: =IF(D75<>0,F75/D75,0) -> 0 | F75: =SUM(F62:F73) -> 0 | H75: =SUM(H62:H73) -> 0 | I75: =IF(H75<>0,J75/H75,0) -> 0 | J75: =SUM(J62:J73) -> 0 | L75: =SUM(L62:L73) -> 0 | M75: =IF(L75<>0,N75/L75,0) -> 0 | N75: =SUM(N62:N73) -> 0 | P75: =SUM(P62:P73) -> 0
B77: Add Extra Host Here (II) | D77: Network | H77: Line Connection | L77: Transformation Connection | P77: Total Line
B78: (if needed)
B79: Month | D79: Units Billed | E79: Rate | F79: Amount | H79: Units Billed | I79: Rate | J79: Amount | L79: Units Billed | M79: Rate | N79: Amount | P79: Amount
B81: January | E81: =IF(D81<>0,F81/D81,0) -> 0 | I81: =IF(H81<>0,J81/H81,0) -> 0 | M81: =IF(L81<>0,N81/L81,0) -> 0 | P81: =J81+N81 -> 0
B82: February | E82: 0 | I82: 0 | M82: 0 | P82: 0
B83: March | E83: 0 | I83: 0 | M83: 0 | P83: 0
B84: April | E84: 0 | I84: 0 | M84: 0 | P84: 0
B85: May | E85: 0 | I85: 0 | M85: 0 | P85: 0
B86: June | E86: 0 | I86: 0 | M86: 0 | P86: 0
B87: July | E87: 0 | I87: 0 | M87: 0 | P87: 0
B88: August | E88: 0 | I88: 0 | M88: 0 | P88: 0
B89: September | E89: 0 | I89: 0 | M89: 0 | P89: 0
B90: October | E90: 0 | I90: 0 | M90: 0 | P90: 0
B91: November | E91: 0 | I91: 0 | M91: 0 | P91: 0
B92: December | E92: 0 | I92: 0 | M92: 0 | P92: 0
B94: Total | D94: =SUM(D81:D92) -> 0 | E94: =IF(D94<>0,F94/D94,0) -> 0 | F94: =SUM(F81:F92) -> 0 | H94: =SUM(H81:H92) -> 0 | I94: =IF(H94<>0,J94/H94,0) -> 0 | J94: =SUM(J81:J92) -> 0 | L94: =SUM(L81:L92) -> 0 | M94: =IF(L94<>0,N94/L94,0) -> 0 | N94: =SUM(N81:N92) -> 0 | P94: =SUM(P81:P92) -> 0
B96: Total | D96: Network | H96: Line Connection | L96: Transformation Connection | P96: Total Line
B98: Month | D98: Units Billed | E98: Rate | F98: Amount | H98: Units Billed | I98: Rate | J98: Amount | L98: Units Billed | M98: Rate | N98: Amount | P98: Amount
B100: January | D100: =D24+D43+D62+D81 -> 1173329 | E100: =IF(D100<>0,F100/D100,0) -> 3.646729945 | F100: =F24+F43+F62+F81 -> 4278814 | H100: =H24+H43+H62+H81 -> 1110155 | I100: =IF(H100<>0,J100/H100,0) -> 0.869700177 | J100: =J24+J43+J62+J81 -> 965502 | L100: =L24+L43+L62+L81 -> 920045 | M100: =IF(L100<>0,N100/L100,0) -> 2.005284524 | N100: =N24+N43+N62+N81 -> 1844952 | P100: =J100+N100 -> 2810454
B101: February | D101: =D25+D44+D63+D82 -> 1169402 | E101: 3.643554569 | F101: =F25+F44+F63+F82 -> 4260780 | H101: =H25+H44+H63+H82 -> 1129458 | I101: 0.8696330452 | J101: =J25+J44+J63+J82 -> 982214 | L101: =L25+L44+L63+L82 -> 928240 | M101: 2.002692192 | N101: =N25+N44+N63+N82 -> 1858979 | P101: 2841193
B102: March | D102: 1113497 | E102: 3.643436848 | F102: 4056956 | H102: 1058728 | I102: 0.8696435723 | J102: 920716 | L102: 846905 | M102: 2.003257744 | N102: 1696569 | P102: 2617285
B103: April | D103: 1009575 | E103: 3.644305772 | F103: 3679200 | H103: 964418 | I103: 0.8696467714 | J103: 838703 | L103: 788874 | M103: 2.004225009 | N103: 1581081 | P103: 2419784
B104: May | D104: 1242666 | E104: 3.649591282 | F104: 4535223 | H104: 1190752 | I104: 0.8697117452 | J104: 1035611 | L104: 962679 | M104: 2.00902897 | N104: 1934050 | P104: 2969661
B105: June | D105: 1349370 | E105: 3.64920889 | F105: 4924133 | H105: 1276897 | I105: 0.8697154117 | J105: 1110537 | L105: 963670 | M105: 2.008449988 | N105: 1935483 | P105: 3046020
B106: July | D106: 1335862 | E106: 3.648870916 | F106: 4874388 | H106: 1282020 | I106: 0.8697227812 | J106: 1115002 | L106: 986341 | M106: 2.008482867 | N106: 1981049 | P106: 3096051
B107: August | D107: 1354113 | E107: 3.64831517 | F107: 4940231 | H107: 1285227 | I107: 0.8697101757 | J107: 1117775 | L107: 1003840 | M107: 2.007925566 | N107: 2015636 | P107: 3133411
B108: September | D108: 1209847 | E108: 3.647986068 | F108: 4413505 | H108: 1145904 | I108: 0.8697203256 | J108: 996616 | L108: 916274 | M108: 2.007834993 | N108: 1839727 | P108: 2836343
B109: October | D109: 1038848 | E109: 3.648810028 | F109: 3790559 | H109: 997565 | I109: 0.8699423095 | J109: 867824 | L109: 808307 | M109: 2.008630384 | N109: 1623590 | P109: 2491414
B110: November | D110: 1059213 | E110: 3.647704475 | F110: 3863696 | H110: 1005822 | I110: 0.8699392139 | J110: 875004 | L110: 819571 | M110: 2.007500265 | N110: 1645289 | P110: 2520293
B111: December | D111: 1210507 | E111: 3.648875223 | F111: 4416989 | H111: 1124107 | I111: 0.8696609842 | J111: 977592 | L111: 932929 | M111: 2.008639457 | N111: 1873918 | P111: 2851510
B113: Total | D113: =SUM(D100:D111) -> 14266229 | E113: =IF(D113<>0,F113/D113,0) -> 3.647388108 | F113: =SUM(F100:F111) -> 52034474 | H113: =SUM(H100:H111) -> 13571053 | I113: =IF(H113<>0,J113/H113,0) -> 0.869725879 | J113: =SUM(J100:J111) -> 11803096 | L113: =SUM(L100:L111) -> 10877675 | M113: =IF(L113<>0,N113/L113,0) -> 2.006892374 | N113: =SUM(N100:N111) -> 21830323 | P113: =SUM(P100:P111) -> 33633419
N115: Low Voltage Switchgear Credit (if applicable) | P115: ='5. UTRs and Sub-Transmission'!E75 -> 0
N117: Total including deduction for Low Voltage Switchgear Credit | P117: =P113+P115 -> 33633419

Sheet 7. Current Wholesale
B13: The purpose of this sheet is to calculate the expected billing when current 2017 Uniform Transmission Rates are applied against historical 2016 transmission units.
B20: IESO | D20: Network | H20: Line Connection | L20: Transformation Connection | P20: Total Line
B22: Month | D22: Units Billed | E22: Rate | F22: Amount | H22: Units Billed | I22: Rate | J22: Amount | L22: Units Billed | M22: Rate | N22: Amount | P22: Amount
B24: January | D24: ='6. Historical Wholesale'!D24 -> 1110525 | E24: ='5. UTRs and Sub-Transmission'!H22 -> 3.66 | F24: =D24*E24 -> 4064521.5 | H24: ='6. Historical Wholesale'!H24 -> 1106094 | I24: ='5. UTRs and Sub-Transmission'!H24 -> 0.87 | J24: =H24*I24 -> 962301.78 | L24: ='6. Historical Wholesale'!L24 -> 857995 | M24: ='5. UTRs and Sub-Transmission'!H26 -> 2.02 | N24: =L24*M24 -> 1733149.9 | P24: =J24+N24 -> 2695451.68
B25: February | D25: ='6. Historical Wholesale'!D25 -> 1109379 | E25: =E24 -> 3.66 | F25: =D25*E25 -> 4060327.14 | H25: ='6. Historical Wholesale'!H25 -> 1124912 | I25: =I24 -> 0.87 | J25: =H25*I25 -> 978673.44 | L25: ='6. Historical Wholesale'!L25 -> 863642 | M25: =M24 -> 2.02 | N25: =L25*M25 -> 1744556.84 | P25: 2723230.28
B26: March | D26: ='6. Historical Wholesale'!D26 -> 1055936 | E26: =E25 -> 3.66 | F26: 3864725.76 | H26: ='6. Historical Wholesale'!H26 -> 1054578 | I26: =I25 -> 0.87 | J26: 917482.86 | L26: ='6. Historical Wholesale'!L26 -> 789894 | M26: =M25 -> 2.02 | N26: 1595585.88 | P26: 2513068.74
B27: April | D27: ='6. Historical Wholesale'!D27 -> 960122 | E27: 3.66 | F27: 3514046.52 | H27: ='6. Historical Wholesale'!H27 -> 960667 | I27: 0.87 | J27: 835780.29 | L27: ='6. Historical Wholesale'!L27 -> 738832 | M27: 2.02 | N27: 1492440.64 | P27: 2328220.93
B28: May | D28: ='6. Historical Wholesale'!D28 -> 1202297 | E28: 3.66 | F28: 4400407.02 | H28: ='6. Historical Wholesale'!H28 -> 1186974 | I28: 0.87 | J28: 1032667.38 | L28: ='6. Historical Wholesale'!L28 -> 920214 | M28: 2.02 | N28: 1858832.28 | P28: 2891499.66
B29: June | D29: ='6. Historical Wholesale'!D29 -> 1303928 | E29: 3.66 | F29: 4772376.48 | H29: ='6. Historical Wholesale'!H29 -> 1272908 | I29: 0.87 | J29: 1107429.96 | L29: ='6. Historical Wholesale'!L29 -> 918915 | M29: 2.02 | N29: 1856208.3 | P29: 2963638.26
B30: July | D30: ='6. Historical Wholesale'!D30 -> 1289467 | E30: 3.66 | F30: 4719449.22 | H30: ='6. Historical Wholesale'!H30 -> 1278103 | I30: 0.87 | J30: 1111949.61 | L30: ='6. Historical Wholesale'!L30 -> 940665 | M30: 2.02 | N30: 1900143.3 | P30: 3012092.91
B31: August | D31: ='6. Historical Wholesale'!D31 -> 1304729 | E31: 3.66 | F31: 4775308.14 | H31: ='6. Historical Wholesale'!H31 -> 1281137 | I31: 0.87 | J31: 1114589.19 | L31: ='6. Historical Wholesale'!L31 -> 955106 | M31: 2.02 | N31: 1929314.12 | P31: 3043903.31
B32: September | D32: ='6. Historical Wholesale'!D32 -> 1164483 | E32: 3.66 | F32: 4262007.78 | H32: ='6. Historical Wholesale'!H32 -> 1142370 | I32: 0.87 | J32: 993861.9 | L32: ='6. Historical Wholesale'!L32 -> 871454 | M32: 2.02 | N32: 1760337.08 | P32: 2754198.98
B33: October | D33: ='6. Historical Wholesale'!D33 -> 1002561 | E33: 3.66 | F33: 3669373.26 | H33: ='6. Historical Wholesale'!H33 -> 996935 | I33: 0.87 | J33: 867333.45 | L33: ='6. Historical Wholesale'!L33 -> 771349 | M33: 2.02 | N33: 1558124.98 | P33: 2425458.43
B34: November | D34: ='6. Historical Wholesale'!D34 -> 1018562 | E34: 3.66 | F34: 3727936.92 | H34: ='6. Historical Wholesale'!H34 -> 1005146 | I34: 0.87 | J34: 874477.02 | L34: ='6. Historical Wholesale'!L34 -> 778381 | M34: 2.02 | N34: 1572329.62 | P34: 2446806.64
B35: December | D35: ='6. Historical Wholesale'!D35 -> 1168480 | E35: 3.66 | F35: 4276636.8 | H35: ='6. Historical Wholesale'!H35 -> 1119911 | I35: 0.87 | J35: 974322.57 | L35: ='6. Historical Wholesale'!L35 -> 890313 | M35: 2.02 | N35: 1798432.26 | P35: 2772754.83
B37: Total | D37: =SUM(D24:D35) -> 13690469 | E37: =IF(D37<>0,F37/D37,0) -> 3.66 | F37: =SUM(F24:F35) -> 50107116.54 | H37: =SUM(H24:H35) -> 13529735 | I37: =IF(H37<>0,J37/H37,0) -> 0.87 | J37: =SUM(J24:J35) -> 11770869.45 | L37: =SUM(L24:L35) -> 10296760 | M37: =IF(L37<>0,N37/L37,0) -> 2.02 | N37: =SUM(N24:N35) -> 20799455.2 | P37: =SUM(P24:P35) -> 32570324.65
B39: Hydro One | D39: Network | H39: Line Connection | L39: Transformation Connection | P39: Total Line
B41: Month | D41: Units Billed | E41: Rate | F41: Amount | H41: Units Billed | I41: Rate | J41: Amount | L41: Units Billed | M41: Rate | N41: Amount | P41: Amount
B43: January | D43: ='6. Historical Wholesale'!D43 -> 62804 | E43: ='5. UTRs and Sub-Transmission'!H36 -> 3.1942 | F43: =D43*E43 -> 200608.5368 | H43: ='6. Historical Wholesale'!H43 -> 4061 | I43: ='5. UTRs and Sub-Transmission'!H38 -> 0.771 | J43: =H43*I43 -> 3131.031 | L43: ='6. Historical Wholesale'!L43 -> 62050 | M43: ='5. UTRs and Sub-Transmission'!H40 -> 1.7493 | N43: =L43*M43 -> 108544.065 | P43: =J43+N43 -> 111675.096
B44: February | D44: ='6. Historical Wholesale'!D44 -> 60023 | E44: =E43 -> 3.1942 | F44: =D44*E44 -> 191725.4666 | H44: ='6. Historical Wholesale'!H44 -> 4546 | I44: =I43 -> 0.771 | J44: =H44*I44 -> 3504.966 | L44: ='6. Historical Wholesale'!L44 -> 64598 | M44: =M43 -> 1.7493 | N44: =L44*M44 -> 113001.2814 | P44: 116506.2474
B45: March | D45: ='6. Historical Wholesale'!D45 -> 57561 | E45: 3.1942 | F45: 183861.3462 | H45: ='6. Historical Wholesale'!H45 -> 4150 | I45: 0.771 | J45: 3199.65 | L45: ='6. Historical Wholesale'!L45 -> 57011 | M45: =M44 -> 1.7493 | N45: 99729.3423 | P45: 102928.9923
B46: April | D46: ='6. Historical Wholesale'!D46 -> 49453 | E46: 3.1942 | F46: 157962.7726 | H46: ='6. Historical Wholesale'!H46 -> 3751 | I46: 0.771 | J46: 2892.021 | L46: ='6. Historical Wholesale'!L46 -> 50042 | M46: =M45 -> 1.7493 | N46: 87538.4706 | P46: 90430.4916
B47: May | D47: ='6. Historical Wholesale'!D47 -> 40369 | E47: 3.1942 | F47: 128946.6598 | H47: ='6. Historical Wholesale'!H47 -> 3778 | I47: 0.771 | J47: 2912.838 | L47: ='6. Historical Wholesale'!L47 -> 42465 | M47: 1.7493 | N47: 74284.0245 | P47: 77196.8625
B48: June | D48: ='6. Historical Wholesale'!D48 -> 45442 | E48: 3.1942 | F48: 145150.8364 | H48: ='6. Historical Wholesale'!H48 -> 3989 | I48: 0.771 | J48: 3075.519 | L48: ='6. Historical Wholesale'!L48 -> 44755 | M48: 1.7493 | N48: 78289.9215 | P48: 81365.4405
B49: July | D49: ='6. Historical Wholesale'!D49 -> 46395 | E49: 3.1942 | F49: 148194.909 | H49: ='6. Historical Wholesale'!H49 -> 3917 | I49: 0.771 | J49: 3020.007 | L49: ='6. Historical Wholesale'!L49 -> 45676 | M49: 1.7493 | N49: 79901.0268 | P49: 82921.0338
B50: August | D50: ='6. Historical Wholesale'!D50 -> 49384 | E50: 3.1942 | F50: 157742.3728 | H50: ='6. Historical Wholesale'!H50 -> 4090 | I50: 0.771 | J50: 3153.39 | L50: ='6. Historical Wholesale'!L50 -> 48734 | M50: 1.7493 | N50: 85250.3862 | P50: 88403.7762
B51: September | D51: ='6. Historical Wholesale'!D51 -> 45364 | E51: 3.1942 | F51: 144901.6888 | H51: ='6. Historical Wholesale'!H51 -> 3534 | I51: 0.771 | J51: 2724.714 | L51: ='6. Historical Wholesale'!L51 -> 44820 | M51: 1.7493 | N51: 78403.626 | P51: 81128.34
B52: October | D52: ='6. Historical Wholesale'!D52 -> 36287 | E52: 3.1942 | F52: 115907.9354 | H52: ='6. Historical Wholesale'!H52 -> 630 | I52: 0.771 | J52: 485.73 | L52: ='6. Historical Wholesale'!L52 -> 36958 | M52: 1.7493 | N52: 64650.6294 | P52: 65136.3594
B53: November | D53: ='6. Historical Wholesale'!D53 -> 40651 | E53: 3.1942 | F53: 129847.4242 | H53: ='6. Historical Wholesale'!H53 -> 676 | I53: 0.771 | J53: 521.196 | L53: ='6. Historical Wholesale'!L53 -> 41190 | M53: 1.7493 | N53: 72053.667 | P53: 72574.863
B54: December | D54: ='6. Historical Wholesale'!D54 -> 42027 | E54: 3.1942 | F54: 134242.6434 | H54: ='6. Historical Wholesale'!H54 -> 4196 | I54: 0.771 | J54: 3235.116 | L54: ='6. Historical Wholesale'!L54 -> 42616 | M54: 1.7493 | N54: 74548.1688 | P54: 77783.2848
B56: Total | D56: =SUM(D43:D54) -> 575760 | E56: =IF(D56<>0,F56/D56,0) -> 3.1942 | F56: =SUM(F43:F54) -> 1839092.592 | H56: =SUM(H43:H54) -> 41318 | I56: =IF(H56<>0,J56/H56,0) -> 0.771 | J56: =SUM(J43:J54) -> 31856.178 | L56: =SUM(L43:L54) -> 580915 | M56: =IF(L56<>0,N56/L56,0) -> 1.7493 | N56: =SUM(N43:N54) -> 1016194.609 | P56: =SUM(P43:P54) -> 1048050.787
B58: ='6. Historical Wholesale'!B58 -> Add Extra Host Here (I) | D58: Network | H58: Line Connection | L58: Transformation Connection | P58: Total Line
B60: Month | D60: Units Billed | E60: Rate | F60: Amount | H60: Units Billed | I60: Rate | J60: Amount | L60: Units Billed | M60: Rate | N60: Amount | P60: Amount
B62: January | D62: ='6. Historical Wholesale'!D62 -> 0 | E62: ='5. UTRs and Sub-Transmission'!H51 -> 0 | F62: =D62*E62 -> 0 | H62: ='6. Historical Wholesale'!H62 -> 0 | I62: ='5. UTRs and Sub-Transmission'!H53 -> 0 | J62: =H62*I62 -> 0 | L62: ='6. Historical Wholesale'!L62 -> 0 | M62: ='5. UTRs and Sub-Transmission'!H55 -> 0 | N62: =L62*M62 -> 0 | P62: =J62+N62 -> 0
B63: February | D63: ='6. Historical Wholesale'!D63 -> 0 | E63: =E62 -> 0 | F63: =D63*E63 -> 0 | H63: ='6. Historical Wholesale'!H63 -> 0 | I63: =I62 -> 0 | J63: =H63*I63 -> 0 | L63: ='6. Historical Wholesale'!L63 -> 0 | M63: =M62 -> 0 | N63: =L63*M63 -> 0 | P63: 0
B64: March | D64: ='6. Historical Wholesale'!D64 -> 0 | E64: =E63 -> 0 | F64: 0 | H64: ='6. Historical Wholesale'!H64 -> 0 | I64: =I63 -> 0 | J64: 0 | L64: ='6. Historical Wholesale'!L64 -> 0 | M64: =M63 -> 0 | N64: 0 | P64: 0
B65: April | D65: ='6. Historical Wholesale'!D65 -> 0 | E65: 0 | F65: 0 | H65: ='6. Historical Wholesale'!H65 -> 0 | I65: 0 | J65: 0 | L65: ='6. Historical Wholesale'!L65 -> 0 | M65: =M64 -> 0 | N65: 0 | P65: 0
B66: May | D66: ='6. Historical Wholesale'!D66 -> 0 | E66: 0 | F66: 0 | H66: ='6. Historical Wholesale'!H66 -> 0 | I66: 0 | J66: 0 | L66: ='6. Historical Wholesale'!L66 -> 0 | M66: 0 | N66: 0 | P66: 0
B67: June | D67: ='6. Historical Wholesale'!D67 -> 0 | E67: 0 | F67: 0 | H67: ='6. Historical Wholesale'!H67 -> 0 | I67: 0 | J67: 0 | L67: ='6. Historical Wholesale'!L67 -> 0 | M67: 0 | N67: 0 | P67: 0
B68: July | D68: ='6. Historical Wholesale'!D68 -> 0 | E68: 0 | F68: 0 | H68: ='6. Historical Wholesale'!H68 -> 0 | I68: 0 | J68: 0 | L68: ='6. Historical Wholesale'!L68 -> 0 | M68: 0 | N68: 0 | P68: 0
B69: August | D69: ='6. Historical Wholesale'!D69 -> 0 | E69: 0 | F69: 0 | H69: ='6. Historical Wholesale'!H69 -> 0 | I69: 0 | J69: 0 | L69: ='6. Historical Wholesale'!L69 -> 0 | M69: 0 | N69: 0 | P69: 0
B70: September | D70: ='6. Historical Wholesale'!D70 -> 0 | E70: 0 | F70: 0 | H70: ='6. Historical Wholesale'!H70 -> 0 | I70: 0 | J70: 0 | L70: ='6. Historical Wholesale'!L70 -> 0 | M70: 0 | N70: 0 | P70: 0
B71: October | D71: ='6. Historical Wholesale'!D71 -> 0 | E71: 0 | F71: 0 | H71: ='6. Historical Wholesale'!H71 -> 0 | I71: 0 | J71: 0 | L71: ='6. Historical Wholesale'!L71 -> 0 | M71: 0 | N71: 0 | P71: 0
B72: November | D72: ='6. Historical Wholesale'!D72 -> 0 | E72: 0 | F72: 0 | H72: ='6. Historical Wholesale'!H72 -> 0 | I72: 0 | J72: 0 | L72: ='6. Historical Wholesale'!L72 -> 0 | M72: 0 | N72: 0 | P72: 0
B73: December | D73: ='6. Historical Wholesale'!D73 -> 0 | E73: 0 | F73: 0 | H73: ='6. Historical Wholesale'!H73 -> 0 | I73: 0 | J73: 0 | L73: ='6. Historical Wholesale'!L73 -> 0 | M73: 0 | N73: 0 | P73: 0
B75: Total | D75: =SUM(D62:D73) -> 0 | E75: =IF(D75<>0,F75/D75,0) -> 0 | F75: =SUM(F62:F73) -> 0 | H75: =SUM(H62:H73) -> 0 | I75: =IF(H75<>0,J75/H75,0) -> 0 | J75: =SUM(J62:J73) -> 0 | L75: =SUM(L62:L73) -> 0 | M75: =IF(L75<>0,N75/L75,0) -> 0 | N75: =SUM(N62:N73) -> 0 | P75: =SUM(P62:P73) -> 0
B77: ='6. Historical Wholesale'!B77 -> Add Extra Host Here (II) | D77: Network | H77: Line Connection | L77: Transformation Connection | P77: Total Line
B79: Month | D79: Units Billed | E79: Rate | F79: Amount | H79: Units Billed | I79: Rate | J79: Amount | L79: Units Billed | M79: Rate | N79: Amount | P79: Amount
B81: January | D81: ='6. Historical Wholesale'!D81 -> 0 | E81: ='5. UTRs and Sub-Transmission'!H66 -> 0 | F81: =D81*E81 -> 0 | H81: ='6. Historical Wholesale'!H81 -> 0 | I81: ='5. UTRs and Sub-Transmission'!H68 -> 0 | J81: =H81*I81 -> 0 | L81: ='6. Historical Wholesale'!L81 -> 0 | M81: ='5. UTRs and Sub-Transmission'!H70 -> 0 | N81: =L81*M81 -> 0 | P81: =J81+N81 -> 0
B82: February | D82: ='6. Historical Wholesale'!D82 -> 0 | E82: =E81 -> 0 | F82: =D82*E82 -> 0 | H82: ='6. Historical Wholesale'!H82 -> 0 | I82: =I81 -> 0 | J82: =H82*I82 -> 0 | L82: ='6. Historical Wholesale'!L82 -> 0 | M82: =M81 -> 0 | N82: =L82*M82 -> 0 | P82: 0
B83: March | D83: ='6. Historical Wholesale'!D83 -> 0 | E83: =E82 -> 0 | F83: 0 | H83: ='6. Historical Wholesale'!H83 -> 0 | I83: =I82 -> 0 | J83: 0 | L83: ='6. Historical Wholesale'!L83 -> 0 | M83: =M82 -> 0 | N83: 0 | P83: 0
B84: April | D84: ='6. Historical Wholesale'!D84 -> 0 | E84: 0 | F84: 0 | H84: ='6. Historical Wholesale'!H84 -> 0 | I84: 0 | J84: 0 | L84: ='6. Historical Wholesale'!L84 -> 0 | M84: =M83 -> 0 | N84: 0 | P84: 0
B85: May | D85: ='6. Historical Wholesale'!D85 -> 0 | E85: 0 | F85: 0 | H85: ='6. Historical Wholesale'!H85 -> 0 | I85: 0 | J85: 0 | L85: ='6. Historical Wholesale'!L85 -> 0 | M85: 0 | N85: 0 | P85: 0
B86: June | D86: ='6. Historical Wholesale'!D86 -> 0 | E86: 0 | F86: 0 | H86: ='6. Historical Wholesale'!H86 -> 0 | I86: 0 | J86: 0 | L86: ='6. Historical Wholesale'!L86 -> 0 | M86: 0 | N86: 0 | P86: 0
B87: July | D87: ='6. Historical Wholesale'!D87 -> 0 | E87: 0 | F87: 0 | H87: ='6. Historical Wholesale'!H87 -> 0 | I87: 0 | J87: 0 | L87: ='6. Historical Wholesale'!L87 -> 0 | M87: 0 | N87: 0 | P87: 0
B88: August | D88: ='6. Historical Wholesale'!D88 -> 0 | E88: 0 | F88: 0 | H88: ='6. Historical Wholesale'!H88 -> 0 | I88: 0 | J88: 0 | L88: ='6. Historical Wholesale'!L88 -> 0 | M88: 0 | N88: 0 | P88: 0
B89: September | D89: ='6. Historical Wholesale'!D89 -> 0 | E89: 0 | F89: 0 | H89: ='6. Historical Wholesale'!H89 -> 0 | I89: 0 | J89: 0 | L89: ='6. Historical Wholesale'!L89 -> 0 | M89: 0 | N89: 0 | P89: 0
B90: October | D90: ='6. Historical Wholesale'!D90 -> 0 | E90: 0 | F90: 0 | H90: ='6. Historical Wholesale'!H90 -> 0 | I90: 0 | J90: 0 | L90: ='6. Historical Wholesale'!L90 -> 0 | M90: 0 | N90: 0 | P90: 0
B91: November | D91: ='6. Historical Wholesale'!D91 -> 0 | E91: 0 | F91: 0 | H91: ='6. Historical Wholesale'!H91 -> 0 | I91: 0 | J91: 0 | L91: ='6. Historical Wholesale'!L91 -> 0 | M91: 0 | N91: 0 | P91: 0
B92: December | D92: ='6. Historical Wholesale'!D92 -> 0 | E92: 0 | F92: 0 | H92: ='6. Historical Wholesale'!H92 -> 0 | I92: 0 | J92: 0 | L92: ='6. Historical Wholesale'!L92 -> 0 | M92: 0 | N92: 0 | P92: 0
B94: Total | D94: =SUM(D81:D92) -> 0 | E94: =IF(D94<>0,F94/D94,0) -> 0 | F94: =SUM(F81:F92) -> 0 | H94: =SUM(H81:H92) -> 0 | I94: =IF(H94<>0,J94/H94,0) -> 0 | J94: =SUM(J81:J92) -> 0 | L94: =SUM(L81:L92) -> 0 | M94: =IF(L94<>0,N94/L94,0) -> 0 | N94: =SUM(N81:N92) -> 0 | P94: =SUM(P81:P92) -> 0
B96: Total | D96: Network | H96: Line Connection | L96: Transformation Connection | P96: Total Line
B98: Month | D98: Units Billed | E98: Rate | F98: Amount | H98: Units Billed | I98: Rate | J98: Amount | L98: Units Billed | M98: Rate | N98: Amount | P98: Amount
B100: January | D100: =D24+D43+D62+D81 -> 1173329 | E100: =IF(D100<>0,F100/D100,0) -> 3.635067434 | F100: =F24+F43+F62+F81 -> 4265130.037 | H100: =H24+H43+H62+H81 -> 1110155 | I100: =IF(H100<>0,J100/H100,0) -> 0.8696378533 | J100: =J24+J43+J62+J81 -> 965432.811 | L100: =L24+L43+L62+L81 -> 920045 | M100: =IF(L100<>0,N100/L100,0) -> 2.001743355 | N100: =N24+N43+N62+N81 -> 1841693.965 | P100: =J100+N100 -> 2807126.776
B101: February | D101: =D25+D44+D63+D82 -> 1169402 | E101: 3.636091444 | F101: =F25+F44+F63+F82 -> 4252052.607 | H101: =H25+H44+H63+H82 -> 1129458 | I101: 0.869601531 | J101: =J25+J44+J63+J82 -> 982178.406 | L101: =L25+L44+L63+L82 -> 928240 | M101: 2.001161468 | N101: =N25+N44+N63+N82 -> 1857558.121 | P101: 2839736.527
B102: March | D102: 1113497 | E102: 3.635920982 | F102: 4048587.106 | H102: 1058728 | I102: 0.86961194 | J102: 920682.51 | L102: 846905 | M102: 2.001777321 | N102: 1695315.222 | P102: 2615997.732
B103: April | D103: 1009575 | E103: 3.637183263 | F103: 3672009.293 | H103: 964418 | I103: 0.8696149502 | J103: 838672.311 | L103: 788874 | M103: 2.002828222 | N103: 1579979.111 | P103: 2418651.422
B104: May | D104: 1242666 | E104: 3.644868114 | F104: 4529353.68 | H104: 1190752 | I104: 0.8696858943 | J104: 1035580.218 | L104: 962679 | M104: 2.008059077 | N104: 1933116.305 | P104: 2968696.522
B105: June | D105: 1349370 | E105: 3.644313507 | F105: 4917527.316 | H105: 1276897 | I105: 0.869690726 | J105: 1110505.479 | L105: 963670 | M105: 2.007428084 | N105: 1934498.221 | P105: 3045003.701
B106: July | D106: 1335862 | E106: 3.643822587 | F106: 4867644.129 | H106: 1282020 | I106: 0.8696975219 | J106: 1114969.617 | L106: 986341 | M106: 2.007464281 | N106: 1980044.327 | P106: 3095013.944
B107: August | D107: 1354113 | E107: 3.643012446 | F107: 4933050.513 | H107: 1285227 | I107: 0.8696849506 | J107: 1117742.58 | L107: 1003840 | M107: 2.006858171 | N107: 2014564.506 | P107: 3132307.086
B108: September | D108: 1209847 | E108: 3.642534526 | F108: 4406909.469 | H108: 1145904 | I108: 0.8696946812 | J108: 996586.614 | L108: 916274 | M108: 2.006758574 | N108: 1838740.706 | P108: 2835327.32
B109: October | D109: 1038848 | E109: 3.643729588 | F109: 3785281.195 | H109: 997565 | I109: 0.8699374778 | J109: 867819.18 | L109: 808307 | M109: 2.007622858 | N109: 1622775.609 | P109: 2490594.789
B110: November | D110: 1059213 | E110: 3.642123297 | F110: 3857784.344 | H110: 1005822 | I110: 0.8699334634 | J110: 874998.216 | L110: 819571 | M110: 2.006395159 | N110: 1644383.287 | P110: 2519381.503
B111: December | D111: 1210507 | E111: 3.643828118 | F111: 4410879.443 | H111: 1124107 | I111: 0.8696304587 | J111: 977557.686 | L111: 932929 | M111: 2.007634481 | N111: 1872980.429 | P111: 2850538.115
B113: Total | D113: =SUM(D100:D111) -> 14266229 | E113: =IF(D113<>0,F113/D113,0) -> 3.641201128 | F113: =SUM(F100:F111) -> 51946209.13 | H113: =SUM(H100:H111) -> 13571053 | I113: =IF(H113<>0,J113/H113,0) -> 0.8696985877 | J113: =SUM(J100:J111) -> 11802725.63 | L113: =SUM(L100:L111) -> 10877675 | M113: =IF(L113<>0,N113/L113,0) -> 2.005543447 | N113: =SUM(N100:N111) -> 21815649.81 | P113: =SUM(P100:P111) -> 33618375.44
N115: Low Voltage Switchgear Credit (if applicable) | P115: ='5. UTRs and Sub-Transmission'!H75 -> 0
N117: Total including deduction for Low Voltage Switchgear Credit | P117: =P113+P115 -> 33618375.44

Sheet 8. Forecast Wholesale
B13: The purpose of this sheet is to calculate the expected billing when forecasted 2018 Uniform Transmission Rates are applied against historical 2016 transmission units.
B20: IESO | D20: Network | H20: Line Connection | L20: Transformation Connection | P20: Total Line
B22: Month | D22: Units Billed | E22: Rate | F22: Amount | H22: Units Billed | I22: Rate | J22: Amount | L22: Units Billed | M22: Rate | N22: Amount | P22: Amount
B24: January | D24: ='6. Historical Wholesale'!D24 -> 1110525 | E24: ='5. UTRs and Sub-Transmission'!J22 -> 3.66 | F24: =D24*E24 -> 4064521.5 | H24: ='6. Historical Wholesale'!H24 -> 1106094 | I24: ='5. UTRs and Sub-Transmission'!J24 -> 0.87 | J24: =H24*I24 -> 962301.78 | L24: ='6. Historical Wholesale'!L24 -> 857995 | M24: ='5. UTRs and Sub-Transmission'!J26 -> 2.02 | N24: =L24*M24 -> 1733149.9 | P24: =J24+N24 -> 2695451.68
B25: February | D25: ='6. Historical Wholesale'!D25 -> 1109379 | E25: =E24 -> 3.66 | F25: 4060327.14 | H25: ='6. Historical Wholesale'!H25 -> 1124912 | I25: =I24 -> 0.87 | J25: 978673.44 | L25: ='6. Historical Wholesale'!L25 -> 863642 | M25: =M24 -> 2.02 | N25: 1744556.84 | P25: 2723230.28
B26: March | D26: ='6. Historical Wholesale'!D26 -> 1055936 | E26: 3.66 | F26: 3864725.76 | H26: ='6. Historical Wholesale'!H26 -> 1054578 | I26: 0.87 | J26: 917482.86 | L26: ='6. Historical Wholesale'!L26 -> 789894 | M26: 2.02 | N26: 1595585.88 | P26: 2513068.74
B27: April | D27: ='6. Historical Wholesale'!D27 -> 960122 | E27: 3.66 | F27: 3514046.52 | H27: ='6. Historical Wholesale'!H27 -> 960667 | I27: 0.87 | J27: 835780.29 | L27: ='6. Historical Wholesale'!L27 -> 738832 | M27: 2.02 | N27: 1492440.64 | P27: 2328220.93
B28: May | D28: ='6. Historical Wholesale'!D28 -> 1202297 | E28: 3.66 | F28: 4400407.02 | H28: ='6. Historical Wholesale'!H28 -> 1186974 | I28: 0.87 | J28: 1032667.38 | L28: ='6. Historical Wholesale'!L28 -> 920214 | M28: 2.02 | N28: 1858832.28 | P28: 2891499.66
B29: June | D29: ='6. Historical Wholesale'!D29 -> 1303928 | E29: 3.66 | F29: 4772376.48 | H29: ='6. Historical Wholesale'!H29 -> 1272908 | I29: 0.87 | J29: 1107429.96 | L29: ='6. Historical Wholesale'!L29 -> 918915 | M29: 2.02 | N29: 1856208.3 | P29: 2963638.26
B30: July | D30: ='6. Historical Wholesale'!D30 -> 1289467 | E30: 3.66 | F30: 4719449.22 | H30: ='6. Historical Wholesale'!H30 -> 1278103 | I30: 0.87 | J30: 1111949.61 | L30: ='6. Historical Wholesale'!L30 -> 940665 | M30: 2.02 | N30: 1900143.3 | P30: 3012092.91
B31: August | D31: ='6. Historical Wholesale'!D31 -> 1304729 | E31: 3.66 | F31: 4775308.14 | H31: ='6. Historical Wholesale'!H31 -> 1281137 | I31: 0.87 | J31: 1114589.19 | L31: ='6. Historical Wholesale'!L31 -> 955106 | M31: 2.02 | N31: 1929314.12 | P31: 3043903.31
B32: September | D32: ='6. Historical Wholesale'!D32 -> 1164483 | E32: 3.66 | F32: 4262007.78 | H32: ='6. Historical Wholesale'!H32 -> 1142370 | I32: 0.87 | J32: 993861.9 | L32: ='6. Historical Wholesale'!L32 -> 871454 | M32: 2.02 | N32: 1760337.08 | P32: 2754198.98
B33: October | D33: ='6. Historical Wholesale'!D33 -> 1002561 | E33: 3.66 | F33: 3669373.26 | H33: ='6. Historical Wholesale'!H33 -> 996935 | I33: 0.87 | J33: 867333.45 | L33: ='6. Historical Wholesale'!L33 -> 771349 | M33: 2.02 | N33: 1558124.98 | P33: 2425458.43
B34: November | D34: ='6. Historical Wholesale'!D34 -> 1018562 | E34: 3.66 | F34: 3727936.92 | H34: ='6. Historical Wholesale'!H34 -> 1005146 | I34: 0.87 | J34: 874477.02 | L34: ='6. Historical Wholesale'!L34 -> 778381 | M34: 2.02 | N34: 1572329.62 | P34: 2446806.64
B35: December | D35: ='6. Historical Wholesale'!D35 -> 1168480 | E35: 3.66 | F35: 4276636.8 | H35: ='6. Historical Wholesale'!H35 -> 1119911 | I35: 0.87 | J35: 974322.57 | L35: ='6. Historical Wholesale'!L35 -> 890313 | M35: 2.02 | N35: 1798432.26 | P35: 2772754.83
B37: Total | D37: =SUM(D24:D35) -> 13690469 | E37: =IF(D37<>0,F37/D37,0) -> 3.66 | F37: =SUM(F24:F35) -> 50107116.54 | H37: =SUM(H24:H35) -> 13529735 | I37: =IF(H37<>0,J37/H37,0) -> 0.87 | J37: =SUM(J24:J35) -> 11770869.45 | L37: =SUM(L24:L35) -> 10296760 | M37: =IF(L37<>0,N37/L37,0) -> 2.02 | N37: =SUM(N24:N35) -> 20799455.2 | P37: =SUM(P24:P35) -> 32570324.65
B39: Hydro One | D39: Network | H39: Line Connection | L39: Transformation Connection | P39: Total Line
B41: Month | D41: Units Billed | E41: Rate | F41: Amount | H41: Units Billed | I41: Rate | J41: Amount | L41: Units Billed | M41: Rate | N41: Amount | P41: Amount
B43: January | D43: ='6. Historical Wholesale'!D43 -> 62804 | E43: ='5. UTRs and Sub-Transmission'!J36 -> 3.1942 | F43: =D43*E43 -> 200608.5368 | H43: ='6. Historical Wholesale'!H43 -> 4061 | I43: ='5. UTRs and Sub-Transmission'!J38 -> 0.771 | J43: =H43*I43 -> 3131.031 | L43: ='6. Historical Wholesale'!L43 -> 62050 | M43: ='5. UTRs and Sub-Transmission'!J40 -> 1.7493 | N43: =L43*M43 -> 108544.065 | P43: =J43+N43 -> 111675.096
B44: February | D44: ='6. Historical Wholesale'!D44 -> 60023 | E44: =E43 -> 3.1942 | F44: 191725.4666 | H44: ='6. Historical Wholesale'!H44 -> 4546 | I44: =I43 -> 0.771 | J44: 3504.966 | L44: ='6. Historical Wholesale'!L44 -> 64598 | M44: =M43 -> 1.7493 | N44: 113001.2814 | P44: 116506.2474
B45: March | D45: ='6. Historical Wholesale'!D45 -> 57561 | E45: 3.1942 | F45: 183861.3462 | H45: ='6. Historical Wholesale'!H45 -> 4150 | I45: 0.771 | J45: 3199.65 | L45: ='6. Historical Wholesale'!L45 -> 57011 | M45: 1.7493 | N45: 99729.3423 | P45: 102928.9923
B46: April | D46: ='6. Historical Wholesale'!D46 -> 49453 | E46: 3.1942 | F46: 157962.7726 | H46: ='6. Historical Wholesale'!H46 -> 3751 | I46: 0.771 | J46: 2892.021 | L46: ='6. Historical Wholesale'!L46 -> 50042 | M46: 1.7493 | N46: 87538.4706 | P46: 90430.4916
B47: May | D47: ='6. Historical Wholesale'!D47 -> 40369 | E47: 3.1942 | F47: 128946.6598 | H47: ='6. Historical Wholesale'!H47 -> 3778 | I47: 0.771 | J47: 2912.838 | L47: ='6. Historical Wholesale'!L47 -> 42465 | M47: 1.7493 | N47: 74284.0245 | P47: 77196.8625
B48: June | D48: ='6. Historical Wholesale'!D48 -> 45442 | E48: 3.1942 | F48: 145150.8364 | H48: ='6. Historical Wholesale'!H48 -> 3989 | I48: 0.771 | J48: 3075.519 | L48: ='6. Historical Wholesale'!L48 -> 44755 | M48: 1.7493 | N48: 78289.9215 | P48: 81365.4405
B49: July | D49: ='6. Historical Wholesale'!D49 -> 46395 | E49: 3.1942 | F49: 148194.909 | H49: ='6. Historical Wholesale'!H49 -> 3917 | I49: 0.771 | J49: 3020.007 | L49: ='6. Historical Wholesale'!L49 -> 45676 | M49: 1.7493 | N49: 79901.0268 | P49: 82921.0338
B50: August | D50: ='6. Historical Wholesale'!D50 -> 49384 | E50: 3.1942 | F50: 157742.3728 | H50: ='6. Historical Wholesale'!H50 -> 4090 | I50: 0.771 | J50: 3153.39 | L50: ='6. Historical Wholesale'!L50 -> 48734 | M50: 1.7493 | N50: 85250.3862 | P50: 88403.7762
B51: September | D51: ='6. Historical Wholesale'!D51 -> 45364 | E51: 3.1942 | F51: 144901.6888 | H51: ='6. Historical Wholesale'!H51 -> 3534 | I51: 0.771 | J51: 2724.714 | L51: ='6. Historical Wholesale'!L51 -> 44820 | M51: 1.7493 | N51: 78403.626 | P51: 81128.34
B52: October | D52: ='6. Historical Wholesale'!D52 -> 36287 | E52: 3.1942 | F52: 115907.9354 | H52: ='6. Historical Wholesale'!H52 -> 630 | I52: 0.771 | J52: 485.73 | L52: ='6. Historical Wholesale'!L52 -> 36958 | M52: 1.7493 | N52: 64650.6294 | P52: 65136.3594
B53: November | D53: ='6. Historical Wholesale'!D53 -> 40651 | E53: 3.1942 | F53: 129847.4242 | H53: ='6. Historical Wholesale'!H53 -> 676 | I53: 0.771 | J53: 521.196 | L53: ='6. Historical Wholesale'!L53 -> 41190 | M53: 1.7493 | N53: 72053.667 | P53: 72574.863
B54: December | D54: ='6. Historical Wholesale'!D54 -> 42027 | E54: 3.1942 | F54: 134242.6434 | H54: ='6. Historical Wholesale'!H54 -> 4196 | I54: 0.771 | J54: 3235.116 | L54: ='6. Historical Wholesale'!L54 -> 42616 | M54: 1.7493 | N54: 74548.1688 | P54: 77783.2848
B56: Total | D56: =SUM(D43:D54) -> 575760 | E56: =IF(D56<>0,F56/D56,0) -> 3.1942 | F56: =SUM(F43:F54) -> 1839092.592 | H56: =SUM(H43:H54) -> 41318 | I56: =IF(H56<>0,J56/H56,0) -> 0.771 | J56: =SUM(J43:J54) -> 31856.178 | L56: =SUM(L43:L54) -> 580915 | M56: =IF(L56<>0,N56/L56,0) -> 1.7493 | N56: =SUM(N43:N54) -> 1016194.609 | P56: =SUM(P43:P54) -> 1048050.787
B58: ='6. Historical Wholesale'!B58 -> Add Extra Host Here (I) | D58: Network | H58: Line Connection | L58: Transformation Connection | P58: Total Line
B60: Month | D60: Units Billed | E60: Rate | F60: Amount | H60: Units Billed | I60: Rate | J60: Amount | L60: Units Billed | M60: Rate | N60: Amount | P60: Amount
B62: January | D62: ='6. Historical Wholesale'!D62 -> 0 | E62: ='5. UTRs and Sub-Transmission'!J51 -> 0 | F62: =D62*E62 -> 0 | H62: ='6. Historical Wholesale'!H62 -> 0 | I62: ='5. UTRs and Sub-Transmission'!J53 -> 0 | J62: =H62*I62 -> 0 | L62: ='6. Historical Wholesale'!L62 -> 0 | M62: ='5. UTRs and Sub-Transmission'!J55 -> 0 | N62: =L62*M62 -> 0 | P62: =J62+N62 -> 0
B63: February | D63: ='6. Historical Wholesale'!D63 -> 0 | E63: =E62 -> 0 | F63: 0 | H63: ='6. Historical Wholesale'!H63 -> 0 | I63: =I62 -> 0 | J63: 0 | L63: ='6. Historical Wholesale'!L63 -> 0 | M63: =M62 -> 0 | N63: 0 | P63: 0
B64: March | D64: ='6. Historical Wholesale'!D64 -> 0 | E64: 0 | F64: 0 | H64: ='6. Historical Wholesale'!H64 -> 0 | I64: 0 | J64: 0 | L64: ='6. Historical Wholesale'!L64 -> 0 | M64: 0 | N64: 0 | P64: 0
B65: April | D65: ='6. Historical Wholesale'!D65 -> 0 | E65: 0 | F65: 0 | H65: ='6. Historical Wholesale'!H65 -> 0 | I65: 0 | J65: 0 | L65: ='6. Historical Wholesale'!L65 -> 0 | M65: 0 | N65: 0 | P65: 0
B66: May | D66: ='6. Historical Wholesale'!D66 -> 0 | E66: 0 | F66: 0 | H66: ='6. Historical Wholesale'!H66 -> 0 | I66: 0 | J66: 0 | L66: ='6. Historical Wholesale'!L66 -> 0 | M66: 0 | N66: 0 | P66: 0
B67: June | D67: ='6. Historical Wholesale'!D67 -> 0 | E67: 0 | F67: 0 | H67: ='6. Historical Wholesale'!H67 -> 0 | I67: 0 | J67: 0 | L67: ='6. Historical Wholesale'!L67 -> 0 | M67: 0 | N67: 0 | P67: 0
B68: July | D68: ='6. Historical Wholesale'!D68 -> 0 | E68: 0 | F68: 0 | H68: ='6. Historical Wholesale'!H68 -> 0 | I68: 0 | J68: 0 | L68: ='6. Historical Wholesale'!L68 -> 0 | M68: 0 | N68: 0 | P68: 0
B69: August | D69: ='6. Historical Wholesale'!D69 -> 0 | E69: 0 | F69: 0 | H69: ='6. Historical Wholesale'!H69 -> 0 | I69: 0 | J69: 0 | L69: ='6. Historical Wholesale'!L69 -> 0 | M69: 0 | N69: 0 | P69: 0
B70: September | D70: ='6. Historical Wholesale'!D70 -> 0 | E70: 0 | F70: 0 | H70: ='6. Historical Wholesale'!H70 -> 0 | I70: 0 | J70: 0 | L70: ='6. Historical Wholesale'!L70 -> 0 | M70: 0 | N70: 0 | P70: 0
B71: October | D71: ='6. Historical Wholesale'!D71 -> 0 | E71: 0 | F71: 0 | H71: ='6. Historical Wholesale'!H71 -> 0 | I71: 0 | J71: 0 | L71: ='6. Historical Wholesale'!L71 -> 0 | M71: 0 | N71: 0 | P71: 0
B72: November | D72: ='6. Historical Wholesale'!D72 -> 0 | E72: 0 | F72: 0 | H72: ='6. Historical Wholesale'!H72 -> 0 | I72: 0 | J72: 0 | L72: ='6. Historical Wholesale'!L72 -> 0 | M72: 0 | N72: 0 | P72: 0
B73: December | D73: ='6. Historical Wholesale'!D73 -> 0 | E73: 0 | F73: 0 | H73: ='6. Historical Wholesale'!H73 -> 0 | I73: 0 | J73: 0 | L73: ='6. Historical Wholesale'!L73 -> 0 | M73: 0 | N73: 0 | P73: 0
B75: Total | D75: =SUM(D62:D73) -> 0 | E75: =IF(D75<>0,F75/D75,0) -> 0 | F75: =SUM(F62:F73) -> 0 | H75: =SUM(H62:H73) -> 0 | I75: =IF(H75<>0,J75/H75,0) -> 0 | J75: =SUM(J62:J73) -> 0 | L75: =SUM(L62:L73) -> 0 | M75: =IF(L75<>0,N75/L75,0) -> 0 | N75: =SUM(N62:N73) -> 0 | P75: =SUM(P62:P73) -> 0
B77: ='6. Historical Wholesale'!B77 -> Add Extra Host Here (II) | D77: Network | H77: Line Connection | L77: Transformation Connection | P77: Total Line
B79: Month | D79: Units Billed | E79: Rate | F79: Amount | H79: Units Billed | I79: Rate | J79: Amount | L79: Units Billed | M79: Rate | N79: Amount | P79: Amount
B81: January | D81: ='6. Historical Wholesale'!D81 -> 0 | E81: ='5. UTRs and Sub-Transmission'!J66 -> 0 | F81: =D81*E81 -> 0 | H81: ='6. Historical Wholesale'!H81 -> 0 | I81: ='5. UTRs and Sub-Transmission'!J68 -> 0 | J81: =H81*I81 -> 0 | L81: ='6. Historical Wholesale'!L81 -> 0 | M81: ='5. UTRs and Sub-Transmission'!J70 -> 0 | N81: =L81*M81 -> 0 | P81: =J81+N81 -> 0
B82: February | D82: ='6. Historical Wholesale'!D82 -> 0 | E82: =E81 -> 0 | F82: 0 | H82: ='6. Historical Wholesale'!H82 -> 0 | I82: =I81 -> 0 | J82: 0 | L82: ='6. Historical Wholesale'!L82 -> 0 | M82: =M81 -> 0 | N82: 0 | P82: 0
B83: March | D83: ='6. Historical Wholesale'!D83 -> 0 | E83: 0 | F83: 0 | H83: ='6. Historical Wholesale'!H83 -> 0 | I83: 0 | J83: 0 | L83: ='6. Historical Wholesale'!L83 -> 0 | M83: 0 | N83: 0 | P83: 0
B84: April | D84: ='6. Historical Wholesale'!D84 -> 0 | E84: 0 | F84: 0 | H84: ='6. Historical Wholesale'!H84 -> 0 | I84: 0 | J84: 0 | L84: ='6. Historical Wholesale'!L84 -> 0 | M84: 0 | N84: 0 | P84: 0
B85: May | D85: ='6. Historical Wholesale'!D85 -> 0 | E85: 0 | F85: 0 | H85: ='6. Historical Wholesale'!H85 -> 0 | I85: 0 | J85: 0 | L85: ='6. Historical Wholesale'!L85 -> 0 | M85: 0 | N85: 0 | P85: 0
B86: June | D86: ='6. Historical Wholesale'!D86 -> 0 | E86: 0 | F86: 0 | H86: ='6. Historical Wholesale'!H86 -> 0 | I86: 0 | J86: 0 | L86: ='6. Historical Wholesale'!L86 -> 0 | M86: 0 | N86: 0 | P86: 0
B87: July | D87: ='6. Historical Wholesale'!D87 -> 0 | E87: 0 | F87: 0 | H87: ='6. Historical Wholesale'!H87 -> 0 | I87: 0 | J87: 0 | L87: ='6. Historical Wholesale'!L87 -> 0 | M87: 0 | N87: 0 | P87: 0
B88: August | D88: ='6. Historical Wholesale'!D88 -> 0 | E88: 0 | F88: 0 | H88: ='6. Historical Wholesale'!H88 -> 0 | I88: 0 | J88: 0 | L88: ='6. Historical Wholesale'!L88 -> 0 | M88: 0 | N88: 0 | P88: 0
B89: September | D89: ='6. Historical Wholesale'!D89 -> 0 | E89: 0 | F89: 0 | H89: ='6. Historical Wholesale'!H89 -> 0 | I89: 0 | J89: 0 | L89: ='6. Historical Wholesale'!L89 -> 0 | M89: 0 | N89: 0 | P89: 0
B90: October | D90: ='6. Historical Wholesale'!D90 -> 0 | E90: 0 | F90: 0 | H90: ='6. Historical Wholesale'!H90 -> 0 | I90: 0 | J90: 0 | L90: ='6. Historical Wholesale'!L90 -> 0 | M90: 0 | N90: 0 | P90: 0
B91: November | D91: ='6. Historical Wholesale'!D91 -> 0 | E91: 0 | F91: 0 | H91: ='6. Historical Wholesale'!H91 -> 0 | I91: 0 | J91: 0 | L91: ='6. Historical Wholesale'!L91 -> 0 | M91: 0 | N91: 0 | P91: 0
B92: December | D92: ='6. Historical Wholesale'!D92 -> 0 | E92: 0 | F92: 0 | H92: ='6. Historical Wholesale'!H92 -> 0 | I92: 0 | J92: 0 | L92: ='6. Historical Wholesale'!L92 -> 0 | M92: 0 | N92: 0 | P92: 0
B94: Total | D94: =SUM(D81:D92) -> 0 | E94: =IF(D94<>0,F94/D94,0) -> 0 | F94: =SUM(F81:F92) -> 0 | H94: =SUM(H81:H92) -> 0 | I94: =IF(H94<>0,J94/H94,0) -> 0 | J94: =SUM(J81:J92) -> 0 | L94: =SUM(L81:L92) -> 0 | M94: =IF(L94<>0,N94/L94,0) -> 0 | N94: =SUM(N81:N92) -> 0 | P94: =SUM(P81:P92) -> 0
B96: Total | D96: Network | H96: Line Connection | L96: Transformation Connection | P96: Total Line
B98: Month | D98: Units Billed | E98: Rate | F98: Amount | H98: Units Billed | I98: Rate | J98: Amount | L98: Units Billed | M98: Rate | N98: Amount | P98: Amount
B100: January | D100: =D24+D43+D62+D81 -> 1173329 | E100: =IF(D100<>0,F100/D100,0) -> 3.635067434 | F100: =F24+F43+F62+F81 -> 4265130.037 | H100: =H24+H43+H62+H81 -> 1110155 | I100: =IF(H100<>0,J100/H100,0) -> 0.8696378533 | J100: =J24+J43+J62+J81 -> 965432.811 | L100: =L24+L43+L62+L81 -> 920045 | M100: =IF(L100<>0,N100/L100,0) -> 2.001743355 | N100: =N24+N43+N62+N81 -> 1841693.965 | P100: =J100+N100 -> 2807126.776
B101: February | D101: =D25+D44+D63+D82 -> 1169402 | E101: 3.636091444 | F101: 4252052.607 | H101: =H25+H44+H63+H82 -> 1129458 | I101: 0.869601531 | J101: =J25+J44+J63+J82 -> 982178.406 | L101: =L25+L44+L63+L82 -> 928240 | M101: 2.001161468 | N101: =N25+N44+N63+N82 -> 1857558.121 | P101: 2839736.527
B102: March | D102: 1113497 | E102: 3.635920982 | F102: 4048587.106 | H102: =H26+H45+H64+H83 -> 1058728 | I102: 0.86961194 | J102: =J26+J45+J64+J83 -> 920682.51 | L102: =L26+L45+L64+L83 -> 846905 | M102: 2.001777321 | N102: =N26+N45+N64+N83 -> 1695315.222 | P102: 2615997.732
B103: April | D103: 1009575 | E103: 3.637183263 | F103: 3672009.293 | H103: =H27+H46+H65+H84 -> 964418 | I103: 0.8696149502 | J103: =J27+J46+J65+J84 -> 838672.311 | L103: =L27+L46+L65+L84 -> 788874 | M103: 2.002828222 | N103: =N27+N46+N65+N84 -> 1579979.111 | P103: 2418651.422
B104: May | D104: 1242666 | E104: 3.644868114 | F104: 4529353.68 | H104: =H28+H47+H66+H85 -> 1190752 | I104: 0.8696858943 | J104: =J28+J47+J66+J85 -> 1035580.218 | L104: =L28+L47+L66+L85 -> 962679 | M104: 2.008059077 | N104: =N28+N47+N66+N85 -> 1933116.305 | P104: 2968696.522
B105: June | D105: 1349370 | E105: 3.644313507 | F105: 4917527.316 | H105: =H29+H48+H67+H86 -> 1276897 | I105: 0.869690726 | J105: =J29+J48+J67+J86 -> 1110505.479 | L105: =L29+L48+L67+L86 -> 963670 | M105: 2.007428084 | N105: =N29+N48+N67+N86 -> 1934498.221 | P105: 3045003.701
B106: July | D106: 1335862 | E106: 3.643822587 | F106: 4867644.129 | H106: =H30+H49+H68+H87 -> 1282020 | I106: 0.8696975219 | J106: =J30+J49+J68+J87 -> 1114969.617 | L106: =L30+L49+L68+L87 -> 986341 | M106: 2.007464281 | N106: =N30+N49+N68+N87 -> 1980044.327 | P106: 3095013.944
B107: August | D107: 1354113 | E107: 3.643012446 | F107: 4933050.513 | H107: =H31+H50+H69+H88 -> 1285227 | I107: 0.8696849506 | J107: =J31+J50+J69+J88 -> 1117742.58 | L107: =L31+L50+L69+L88 -> 1003840 | M107: 2.006858171 | N107: =N31+N50+N69+N88 -> 2014564.506 | P107: 3132307.086
B108: September | D108: 1209847 | E108: 3.642534526 | F108: 4406909.469 | H108: =H32+H51+H70+H89 -> 1145904 | I108: 0.8696946812 | J108: =J32+J51+J70+J89 -> 996586.614 | L108: =L32+L51+L70+L89 -> 916274 | M108: 2.006758574 | N108: =N32+N51+N70+N89 -> 1838740.706 | P108: 2835327.32
B109: October | D109: 1038848 | E109: 3.643729588 | F109: 3785281.195 | H109: =H33+H52+H71+H90 -> 997565 | I109: 0.8699374778 | J109: =J33+J52+J71+J90 -> 867819.18 | L109: =L33+L52+L71+L90 -> 808307 | M109: 2.007622858 | N109: =N33+N52+N71+N90 -> 1622775.609 | P109: 2490594.789
B110: November | D110: 1059213 | E110: 3.642123297 | F110: 3857784.344 | H110: =H34+H53+H72+H91 -> 1005822 | I110: 0.8699334634 | J110: =J34+J53+J72+J91 -> 874998.216 | L110: =L34+L53+L72+L91 -> 819571 | M110: 2.006395159 | N110: =N34+N53+N72+N91 -> 1644383.287 | P110: 2519381.503
B111: December | D111: 1210507 | E111: 3.643828118 | F111: 4410879.443 | H111: =H35+H54+H73+H92 -> 1124107 | I111: 0.8696304587 | J111: =J35+J54+J73+J92 -> 977557.686 | L111: =L35+L54+L73+L92 -> 932929 | M111: 2.007634481 | N111: =N35+N54+N73+N92 -> 1872980.429 | P111: 2850538.115
B113: Total | D113: =SUM(D100:D111) -> 14266229 | E113: =IF(D113<>0,F113/D113,0) -> 3.641201128 | F113: =SUM(F100:F111) -> 51946209.13 | H113: =SUM(H100:H111) -> 13571053 | I113: =IF(H113<>0,J113/H113,0) -> 0.8696985877 | J113: =SUM(J100:J111) -> 11802725.63 | L113: =SUM(L100:L111) -> 10877675 | M113: =IF(L113<>0,N113/L113,0) -> 2.005543447 | N113: =SUM(N100:N111) -> 21815649.81 | P113: =SUM(P100:P111) -> 33618375.44
N115: Low Voltage Switchgear Credit (if applicable) | P115: ='5. UTRs and Sub-Transmission'!J75 -> 0
N117: Total including deduction for Low Voltage Switchgear Credit | P117: =P113+P115 -> 33618375.44

Sheet 9. RTSR Rates to Forecast
A13: The purpose of this sheet is to re-align the current RTS Network Rates to recover current wholesale network costs.
A15: Rate Class | B15: Rate Description | C15: Unit | D15: Current RTSR-Network | E15: Loss Adjusted Billed kWh | F15: Billed kW | G15: Billed Amount | H15: Billed Amount % | I15: Current Wholesale Billing | J15: Adjusted RTSR Network
A17: Residential | B17: RTSR - Network | C17: kWh | D17: 0.0074 | E17: 2336056869 | G17: =ROUND(D17*E17, 2) -> 17286820.83 | H17: =G17/51112880.73 -> 0.3382086978 | I17: =H17*total_current_wholesale_network -> 17568659.74 | J17: =IF(ISERROR(I17/E17), 0, I17/E17) -> 0.007520647281
A18: General Service Less Than 50 kW | B18: RTSR - Network | C18: kWh | D18: 0.0068 | E18: 757877502.4 | G18: =ROUND(D18*E18, 2) -> 5153567.02 | H18: 0.1008271682 | I18: 5237589.163 | J18: =IF(ISERROR(I18/E18), 0, I18/E18) -> 0.006910865075
A19: General Service 50 to 1,499 kW | B19: RTSR - Network | C19: kW | D19: 2.8016 | F19: 7075314 | G19: =ROUND(D19*F19, 2) -> 19822199.7 | H19: 0.3878122191 | I19: 20145374.64 | J19: =IF(ISERROR(I19/F19), 0, I19/F19) -> 2.847276409
A20: General Service 1,500 to 4,999 kW | B20: RTSR - Network | C20: kW | D20: 2.9089 | F20: 1726981 | G20: =ROUND(D20*F20, 2) -> 5023615.03 | H20: 0.09828471724 | I20: 5105518.476 | J20: =IF(ISERROR(I20/F20), 0, I20/F20) -> 2.956325794
A21: Large Use > 5000 kW | B21: RTSR - Network | C21: kW | D21: 3.2246 | F21: 1071626 | G21: =ROUND(D21*F21, 2) -> 3455565.2 | H21: 0.06760654361 | I21: 3511903.653 | J21: =IF(ISERROR(I21/F21), 0, I21/F21) -> 3.277172869
A22: Unmetered Scattered Load | B22: RTSR - Network | C22: kWh | D22: 0.0068 | E22: 16183592 | G22: =ROUND(D22*E22, 2) -> 110048.43 | H22: 0.002153046912 | I22: 111842.6251 | J22: =IF(ISERROR(I22/E22), 0, I22/E22) -> 0.006910865346
A23: Sentinel Lighting | B23: RTSR - Network | C23: kW | D23: 2.0681 | F23: 134 | G23: =ROUND(D23*F23, 2) -> 277.13 | H23: 5.421920973e-06 | I23: 281.6482407 | J23: =IF(ISERROR(I23/F23), 0, I23/F23) -> 2.101852543
A24: Street Lighting | B24: RTSR - Network | C24: kW | D24: 2.0786 | F24: 125463 | G24: =ROUND(D24*F24, 2) -> 260787.39 | H24: 0.005102185325 | I24: 265039.1859 | J24: =IF(ISERROR(I24/F24), 0, I24/F24) -> 2.112488829
A26: The purpose of this table is to re-align the current RTS Connection Rates to recover current wholesale connection costs.
A27: Rate Class | B27: Rate Description | C27: Unit | D27: Current RTSR-Connection | E27: Loss Adjusted Billed kWh | F27: Billed kW | G27: Billed Amount | H27: Billed Amount % | I27: Current Wholesale Billing | J27: Adjusted RTSR-Connection
A29: Residential | B29: RTSR - Connection | C29: kWh | D29: 0.0047 | E29: 2336056869 | G29: =ROUND(D29*E29, 2) -> 10979467.29 | H29: =G29/33192807.18 -> 0.3307785096 | I29: =H29*Total_Current_Wholesale_Lineplus -> 11120236.12 | J29: =IF(ISERROR(I29/E29), 0, I29/E29) -> 0.004760259165
A30: General Service Less Than 50 kW | B30: RTSR - Connection | C30: kWh | D30: 0.0045 | E30: 757877502.4 | G30: =ROUND(D30*E30, 2) -> 3410448.76 | H30: 0.1027466204 | I30: 3454174.46 | J30: =IF(ISERROR(I30/E30), 0, I30/E30) -> 0.004557694943
A31: General Service 50 to 1,499 kW | B31: RTSR - Connection | C31: kW | D31: 1.8174 | F31: 7075314 | G31: =ROUND(D31*F31, 2) -> 12858675.66 | H31: 0.3873934371 | I31: 13023538.01 | J31: =IF(ISERROR(I31/F31), 0, I31/F31) -> 1.840701064
A32: General Service 1,500 to 4,999 kW | B32: RTSR - Connection | C32: kW | D32: 1.9423 | F32: 1726981 | G32: =ROUND(D32*F32, 2) -> 3354315.2 | H32: 0.1010554842 | I32: 3397321.206 | J32: =IF(ISERROR(I32/F32), 0, I32/F32) -> 1.967202422
A33: Large Use > 5000 kW | B33: RTSR - Connection | C33: kW | D33: 2.1873 | F33: 1071626 | G33: =ROUND(D33*F33, 2) -> 2343967.55 | H33: 0.07061673143 | I33: 2374019.789 | J33: =IF(ISERROR(I33/F33), 0, I33/F33) -> 2.215343589
A34: Unmetered Scattered Load | B34: RTSR - Connection | C34: kWh | D34: 0.0045 | E34: 16183592 | G34: =ROUND(D34*E34, 2) -> 72826.16 | H34: 0.002194034376 | I34: 73759.87139 | J34: =IF(ISERROR(I34/E34), 0, I34/E34) -> 0.004557694693
A35: Sentinel Lighting | B35: RTSR - Connection | C35: kW | D35: 1.3501 | F35: 134 | G35: =ROUND(D35*F35, 2) -> 180.91 | H35: 5.450277195e-06 | I35: 183.229465 | J35: =IF(ISERROR(I35/F35), 0, I35/F35) -> 1.367384067
A36: Street Lighting | B36: RTSR - Connection | C36: kW | D36: 1.3783 | F36: 125463 | G36: =ROUND(D36*F36, 2) -> 172925.65 | H36: 0.005209732611 | I36: 175142.7468 | J36: =IF(ISERROR(I36/F36), 0, I36/F36) -> 1.395971297
A38: The purpose of this table is to update the re-aligned RTS Network Rates to recover future wholesale network costs.
A39: Rate Class | B39: Rate Description | C39: Unit | D39: Adjusted RTSR-Network | E39: Loss Adjusted Billed kWh | F39: Billed kW | G39: Billed Amount | H39: Billed Amount % | I39: Current Wholesale Billing | J39: Proposed RTSR-Network
A41: Residential | B41: RTSR - Network | C41: kWh | D41: 0.007520647281 | E41: 2336056869 | G41: =IF(ISERROR(D41*E41), 0, ROUND(D41*E41, 2)) -> 17568659.74 | H41: =G41/51946209.14 -> 0.3382086976 | I41: =H41*forecast_wholesale_network -> 17568659.74 | J41: =IF(ISERROR(I41/E41), 0, I41/E41) -> 0.007520647278
A42: General Service Less Than 50 kW | B42: RTSR - Network | C42: kWh | D42: 0.006910865075 | E42: 757877502.4 | G42: =IF(ISERROR(D42*E42), 0, ROUND(D42*E42, 2)) -> 5237589.16 | H42: 0.1008271681 | I42: 5237589.159 | J42: =IF(ISERROR(I42/E42), 0, I42/E42) -> 0.00691086507
A43: General Service 50 to 1,499 kW | B43: RTSR - Network | C43: kW | D43: 2.847276409 | F43: 7075314 | G43: =ROUND(D43*F43, 2) -> 20145374.64 | H43: 0.3878122191 | I43: 20145374.64 | J43: =IF(ISERROR(I43/F43), 0, I43/F43) -> 2.847276409
A44: General Service 1,500 to 4,999 kW | B44: RTSR - Network | C44: kW | D44: 2.956325794 | F44: 1726981 | G44: =ROUND(D44*F44, 2) -> 5105518.48 | H44: 0.0982847173 | I44: 5105518.479 | J44: =IF(ISERROR(I44/F44), 0, I44/F44) -> 2.956325796
A45: Large Use > 5000 kW | B45: RTSR - Network | C45: kW | D45: 3.277172869 | F45: 1071626 | G45: =ROUND(D45*F45, 2) -> 3511903.65 | H45: 0.06760654354 | I45: 3511903.649 | J45: =IF(ISERROR(I45/F45), 0, I45/F45) -> 3.277172866
A46: Unmetered Scattered Load | B46: RTSR - Network | C46: kWh | D46: 0.006910865346 | E46: 16183592 | G46: =IF(ISERROR(D46*E46), 0, ROUND(D46*E46, 2)) -> 111842.63 | H46: 0.002153047005 | I46: 111842.63 | J46: =IF(ISERROR(I46/E46), 0, I46/E46) -> 0.006910865645
A47: Sentinel Lighting | B47: RTSR - Network | C47: kW | D47: 2.101852543 | F47: 134 | G47: =ROUND(D47*F47, 2) -> 281.65 | H47: 5.421954839e-06 | I47: 281.65 | J47: =IF(ISERROR(I47/F47), 0, I47/F47) -> 2.101865671
A48: Street Lighting | B48: RTSR - Network | C48: kW | D48: 2.112488829 | F48: 125463 | G48: =ROUND(D48*F48, 2) -> 265039.19 | H48: 0.005102185403 | I48: 265039.19 | J48: =IF(ISERROR(I48/F48), 0, I48/F48) -> 2.112488861
A50: The purpose of this table is to update the re-aligned RTS Connection Rates to recover future wholesale connection costs.
A51: Rate Class | B51: Rate Description | C51: Unit | D51: Adjusted RTSR-Connection | E51: Loss Adjusted Billed kWh | F51: Billed kW | G51: Billed Amount | H51: Billed Amount % | I51: Current Wholesale Billing | J51: Proposed RTSR-Connection
A53: Residential | B53: RTSR - Connection | C53: kWh | D53: 0.004760259165 | E53: 2336056869 | G53: =ROUND(D53*E53, 2) -> 11120236.12 | H53: =G53/33618375.44 -> 0.3307785095 | I53: =H53*forecast_wholesale_lineplus -> 11120236.12 | J53: =IF(ISERROR(I53/E53), 0, I53/E53) -> 0.004760259163
A54: General Service Less Than 50 kW | B54: RTSR - Connection | C54: kWh | D54: 0.004557694943 | E54: 757877502.4 | G54: =ROUND(D54*E54, 2) -> 3454174.46 | H54: 0.1027466204 | I54: 3454174.46 | J54: =IF(ISERROR(I54/E54), 0, I54/E54) -> 0.004557694942
A55: General Service 50 to 1,499 kW | B55: RTSR - Connection | C55: kW | D55: 1.840701064 | F55: 7075314 | G55: =ROUND(D55*F55, 2) -> 13023538.01 | H55: 0.3873934371 | I55: 13023538.01 | J55: =IF(ISERROR(I55/F55), 0, I55/F55) -> 1.840701064
A56: General Service 1,500 to 4,999 kW | B56: RTSR - Connection | C56: kW | D56: 1.967202422 | F56: 1726981 | G56: =ROUND(D56*F56, 2) -> 3397321.21 | H56: 0.1010554843 | I56: 3397321.21 | J56: =IF(ISERROR(I56/F56), 0, I56/F56) -> 1.967202424
A57: Large Use > 5000 kW | B57: RTSR - Connection | C57: kW | D57: 2.215343589 | F57: 1071626 | G57: =ROUND(D57*F57, 2) -> 2374019.79 | H57: 0.07061673144 | I57: 2374019.79 | J57: =IF(ISERROR(I57/F57), 0, I57/F57) -> 2.21534359
A58: Unmetered Scattered Load | B58: RTSR - Connection | C58: kWh | D58: 0.004557694693 | E58: 16183592 | G58: =ROUND(D58*E58, 2) -> 73759.87 | H58: 0.002194034335 | I58: 73759.86999 | J58: =IF(ISERROR(I58/E58), 0, I58/E58) -> 0.004557694607
A59: Sentinel Lighting | B59: RTSR - Connection | C59: kW | D59: 1.367384067 | F59: 134 | G59: =ROUND(D59*F59, 2) -> 183.23 | H59: 5.450293109e-06 | I59: 183.23 | J59: =IF(ISERROR(I59/F59), 0, I59/F59) -> 1.36738806
A60: Street Lighting | B60: RTSR - Connection | C60: kW | D60: 1.395971297 | F60: 125463 | G60: =ROUND(D60*F60, 2) -> 175142.75 | H60: 0.005209732704 | I60: 175142.75 | J60: =IF(ISERROR(I60/F60), 0, I60/F60) -> 1.395971322

Sheet hidden1 (hidden)
A1: =IF('3. Rate Classes'!L17=1, '3. Rate Classes'!C17, "") -> Residential | B1: 1
A2: =IF('3. Rate Classes'!L18=1, '3. Rate Classes'!C18, "") -> General Service Less Than 50 kW | B2: 2
A3: =IF('3. Rate Classes'!L19=1, '3. Rate Classes'!C19, "") -> General Service 50 to 1,499 kW | B3: 3
A4: =IF('3. Rate Classes'!L20=1, '3. Rate Classes'!C20, "") -> General Service 1,500 to 4,999 kW | B4: 4
A5: =IF('3. Rate Classes'!L21=1, '3. Rate Classes'!C21, "") -> Large Use > 5000 kW | B5: 5
A6: =IF('3. Rate Classes'!L22=1, '3. Rate Classes'!C22, "") -> Unmetered Scattered Load | B6: 6
A7: =IF('3. Rate Classes'!L23=1, '3. Rate Classes'!C23, "") -> Sentinel Lighting | B7: 7
A8: =IF('3. Rate Classes'!L24=1, '3. Rate Classes'!C24, "") -> Street Lighting | B8: 8
A9: =IF('3. Rate Classes'!L25=1, '3. Rate Classes'!C25, "") ->  | B9: 9
A10: =IF('3. Rate Classes'!L26=1, '3. Rate Classes'!C26, "") ->  | B10: 10
A11: =IF('3. Rate Classes'!L27=1, '3. Rate Classes'!C27, "") ->  | B11: 11
A12: =IF('3. Rate Classes'!L28=1, '3. Rate Classes'!C28, "") ->  | B12: 12
A13: =IF('3. Rate Classes'!L29=1, '3. Rate Classes'!C29, "") ->  | B13: 13
A14: =IF('3. Rate Classes'!L30=1, '3. Rate Classes'!C30, "") ->  | B14: 14
A15: =IF('3. Rate Classes'!L31=1, '3. Rate Classes'!C31, "") ->  | B15: 15
A16: =IF('3. Rate Classes'!L32=1, '3. Rate Classes'!C32, "") ->  | B16: 16
A17: =IF('3. Rate Classes'!L33=1, '3. Rate Classes'!C33, "") ->  | B17: 17
A18: =IF('3. Rate Classes'!L34=1, '3. Rate Classes'!C34, "") ->  | B18: 18
A19: =IF('3. Rate Classes'!L35=1, '3. Rate Classes'!C35, "") ->  | B19: 19
A20: =IF('3. Rate Classes'!L36=1, '3. Rate Classes'!C36, "") ->  | B20: 20
A21: =IF('3. Rate Classes'!L37=1, '3. Rate Classes'!C37, "") ->  | B21: 21
A22: =IF('3. Rate Classes'!L38=1, '3. Rate Classes'!C38, "") ->  | B22: 22
